Cogmind - Beta 11 X6 @@@ ROGUE MODE // 2021.08.09 @ 15:30:12 Player: PlasticHeart Result: Destroyed by S-43 Plague with Heavy Machine Gun Performance ------------- Evolutions (9) 4500 Regions Visited (35) 7000 Robots Destroyed (154) 770 Value Destroyed (2994) 2994 Prototype IDs (114) 2280 Alien Tech Used (2) 400 Bonus (10145) 10145 TOTAL SCORE: 28089 Bonus ------- Follower Combat Kills 1245 Aligned with FarCom 300 Met Data Miner 300 Met Imprinter 300 Found Hidden Lab 3000 Met MAIN.C 5000 Cogmind --------- Core Integrity 0/1600 Matter 300/300 Energy 100/100 System Corruption 16% Temperature Cool (0) Movement Core (50) Location -1/Command Parts ------- > --- POWER (2) -------- (None) > --- PROPULSION (6) --- (None) > --- UTILITY (14) ----- Experimental Melee Analysis Suite > --- WEAPON (4) ------- Nanosword > --- INVENTORY (5) ---- Experimental Cesium-ion Thruster Light Regenerative Plating Peak State ------------ > --- POWER ------------ Mini Fusion Reactor > --- PROPULSION ------- Experimental Cesium-ion Thruster Nuclear Pulse Array Cooled Field Propulsion Drive Cooled Field Propulsion Drive Cooled Field Propulsion Drive > --- UTILITY ---------- Experimental Heat Sink Superbattery Experimental Melee Analysis Suite Experimental Melee Analysis Suite Advanced Target Analyzer Advanced Core Analyzer Femtoactuators Advanced Actuator Array Experimental Utility Shielding Experimental Weapon Shielding Light Regenerative Plating AEGIS Remote Shield Deep Network Scanner Deep Network Scanner > --- WEAPON ----------- Nanosword Nanosword Nanosword Nanosword > --- INVENTORY -------- Experimental Cesium-ion Thruster Experimental Cesium-ion Thruster Improved Q-thruster Cooled Q-thruster [Rating: 203] Favorites ----------- Power Micro Fission Core Engine Light Angular Momentum Engine Power Core Micro Fission Core Reactor Mini Fusion Reactor Propulsion Cooled VTOL Module Wheel Wheel Flight Unit Cooled VTOL Module Utility Hacking Suite Device Component Analysis Suite Storage Small Storage Unit Processor Advanced Signal Interpreter Hackware Hacking Suite Protection Light Regenerative Plating Weapon Improved Datajack Energy Gun EM Pulse Gun Energy Cannon Beam Cannon Ballistic Gun Autogun Launcher Missile Launcher Impact Weapon Hammer Slashing Weapon Nanosword Piercing Weapon Plasma Lance Special Melee Weapon Improved Datajack Build | -11 -10 -10 -9 -9 -9 -8 -8 -7 -7 -7 -7 -7 -7 -6 -6 -6 -6 -6 -6 -6 -5 -5 -5 -5 -5 -5 -4 -4 -4 -4 -4 -3 -2 -1 -1 ------- Run | Scr Mat Min Mat Min Exi Min Mat Fac Was Fac Low Low Zio Pro Fac Was Fac Low Low Dat Pro Fac Was Fac Ext Cet Fac Was Fac Arm Lab Res Res Acc Com Slots Evolved 18 | . . . 2 . . . 2 2 . . . . . . 2 . . . . . . 2 . . . . 2 . . . . 2 2 2 . Power . | . . . . . . . . . . . . . . . . . . . . . . . . . . . . . . . . . . . . Propulsion 4 | . . . 1 . . . 1 . . . . . . . . . . . . . . 1 . . . . 1 . . . . . . . . Utility 12 | . . . 1 . . . 1 2 . . . . . . 2 . . . . . . 1 . . . . 1 . . . . 2 1 1 . Weapon 2 | . . . . . . . . . . . . . . . . . . . . . . . . . . . . . . . . . 1 1 . Parts Attached 219 | 6 14 7 23 4 1 1 1 18 . 4 . 2 1 . 9 . 6 1 2 3 . 15 6 18 7 2 7 1 12 12 6 5 5 13 7 Power 15 | 1 1 1 3 . . . . 1 . 1 . . . . 1 . . . . . . 1 2 . . . . . 1 . . . 1 1 . Engine 7 | 1 1 1 2 . . . . 1 . 1 . . . . . . . . . . . . . . . . . . . . . . . . . Core 4 | . . . 1 . . . . . . . . . . . 1 . . . . . . 1 1 . . . . . . . . . . . . Reactor 4 | . . . . . . . . . . . . . . . . . . . . . . . 1 . . . . . 1 . . . 1 1 . Propulsion 59 | 2 2 2 9 3 . 1 1 7 . 1 . . 1 . . . 1 . . . . 5 . 3 . . 3 1 5 2 1 . 1 2 6 Treads . | . . . . . . . . . . . . . . . . . . . . . . . . . . . . . . . . . . . . Leg . | . . . . . . . . . . . . . . . . . . . . . . . . . . . . . . . . . . . . Wheel 19 | 2 2 2 8 3 . 1 1 . . . . . . . . . . . . . . . . . . . . . . . . . . . . Hover . | . . . . . . . . . . . . . . . . . . . . . . . . . . . . . . . . . . . . Flight 40 | . . . 1 . . . . 7 . 1 . . 1 . . . 1 . . . . 5 . 3 . . 3 1 5 2 1 . 1 2 6 Utility 73 | 1 3 1 3 1 1 . . 7 . 2 . 2 . . 5 . 2 1 . 1 . 3 4 4 1 . 2 . 4 3 5 5 2 9 1 Device 22 | . 1 1 . . . . . 1 . 2 . 2 . . 1 . . 1 . . . . 2 . . . 1 . . . 1 2 1 5 1 Storage 9 | 1 2 . . . . . . 1 . . . . . . . . . . . . . 1 . 1 . . . . 1 . . . . 2 . Processor 11 | . . . . . . . . 2 . . . . . . 2 . . . . . . . . . 1 . . . 1 1 . 1 1 2 . Hackware 14 | . . . . . . . . 3 . . . . . . 2 . 2 . . 1 . 1 . 2 . . 1 . 1 . 1 . . . . Protection 17 | . . . 3 1 1 . . . . . . . . . . . . . . . . 1 2 1 . . . . 1 2 3 2 . . . Artifact . | . . . . . . . . . . . . . . . . . . . . . . . . . . . . . . . . . . . . Weapon 72 | 2 8 3 8 . . . . 3 . . . . . . 3 . 3 . 2 2 . 6 . 11 6 2 2 . 2 7 . . 1 1 . Energy Gun 2 | . 1 1 . . . . . . . . . . . . . . . . . . . . . . . . . . . . . . . . . Energy Cannon 3 | . 2 . 1 . . . . . . . . . . . . . . . . . . . . . . . . . . . . . . . . Ballistic Gun 13 | 2 3 2 5 . . . . . . . . . . . . . . . . . . . . . 1 . . . . . . . . . . Ballistic Cannon . | . . . . . . . . . . . . . . . . . . . . . . . . . . . . . . . . . . . . Launcher 2 | . . . 2 . . . . . . . . . . . . . . . . . . . . . . . . . . . . . . . . Special Weapon . | . . . . . . . . . . . . . . . . . . . . . . . . . . . . . . . . . . . . Impact Weapon 2 | . 2 . . . . . . . . . . . . . . . . . . . . . . . . . . . . . . . . . . Slashing Weapon 5 | . . . . . . . . 1 . . . . . . . . . . . . . . . . . . . . . 2 . . 1 1 . Piercing Weapon 23 | . . . . . . . . . . . . . . . 2 . 2 . 1 1 . 3 . 5 3 2 . . 1 3 . . . . . Special Melee Weapon 22 | . . . . . . . . 2 . . . . . . 1 . 1 . 1 1 . 3 . 6 2 . 2 . 1 2 . . . . . Unidentified Prototypes 8 | . . . 3 . . . . . . . . . . . . . . . . . . . 1 . . . . . . . 3 . . . 1 Corrupted Parts 1 | . . . . . . . . . . . . . . . . . . . . . . . . . 1 . . . . . . . . . . System Corruption 1 | . . . . . . . . . . . . . . . . . . . . . . . . . 1 . . . . . . . . . . Parts Lost 38 | . 1 7 3 1 . . . . . . . . . . . . . . . . . . . . 2 . . 1 . . . 1 . . 22 Power 2 | . . 1 . . . . . . . . . . . . . . . . . . . . . . . . . . . . . . . . 1 Propulsion 14 | . . 3 2 1 . . . . . . . . . . . . . . . . . . . . . . . 1 . . . . . . 7 Utility 15 | . . 1 1 . . . . . . . . . . . . . . . . . . . . . 1 . . . . . . 1 . . 11 Weapon 7 | . 1 2 . . . . . . . . . . . . . . . . . . . . . . 1 . . . . . . . . . 3 Highest Loss Streak 19 | . 1 6 3 1 . . . . . . . . . . . . . . . . . . . . 2 . . 1 . . . 1 . . 19 Average Slot Usage (%) 96 | . 95 95 97 99 100 100 88 98 100 99 100 100 100 100 100 100 100 100 100 100 100 100 100 99 99 100 95 94 92 93 91 89 90 87 73 Engine 4 | . 14 13 11 11 11 11 9 7 7 6 7 7 7 7 4 . . . . . . . . . . . . . . . . . . . . Core 1 | . . . . . . . . . . . . . . . 1 6 6 6 6 6 6 5 4 5 5 5 5 5 1 . . . . . . Wheel 8 | . 28 24 32 32 33 33 34 . . . . . . . . . . . . . . . . . . . . . . . . . . . . Flight 18 | . . . . . . . . 30 30 29 30 30 30 30 26 26 26 26 26 26 26 29 29 28 29 29 27 26 24 25 25 22 20 19 13 Device 4 | . 9 14 3 . . . . 3 . 2 7 7 7 7 5 6 6 6 6 6 6 1 . . . . 2 5 5 3 . . 4 3 12 Storage 7 | . 14 14 11 11 11 11 9 7 7 7 7 7 7 7 6 6 6 6 6 6 6 5 5 5 5 5 5 5 5 5 5 4 4 3 2 Processor 5 | . . . . . . . . 9 15 12 7 7 7 7 6 6 6 6 6 6 6 5 5 5 9 11 7 5 5 5 5 8 12 14 13 Hackware 20 | . . . . . . . . 22 23 23 23 23 23 23 33 33 33 33 33 33 33 35 35 35 30 29 31 31 31 30 25 22 20 18 7 Protection 6 | . . . 17 22 22 22 18 . . . . . . . . . . . . . . 3 5 5 5 5 5 5 5 7 15 17 12 11 3 Energy Cannon 1 | . 13 1 1 . . . . . . . . . . . . . . . . . . . . . . . . . . . . . . . . Ballistic Gun 5 | . 9 23 19 22 22 22 18 . . . . . . . . . . . . . . . . . . . . . . . . . . . . Slashing Weapon 2 | . . . . . . . . 6 7 7 7 7 7 7 3 . . . . . . . . . . . . . . 5 10 9 11 11 14 Piercing Weapon 2 | . . . . . . . . . . . . . . . 2 6 6 6 5 7 6 5 5 5 5 9 5 5 7 3 . . . . . Special Melee Weapon 3 | . . . . . . . . 6 7 7 7 7 7 7 5 6 5 6 6 5 6 4 5 4 4 . 5 5 3 . . . . . . Naked Turns . | . . . . . . . . . . . . . . . . . . . . . . . . . . . . . . . . . . . . Heaviest Build 110 | 13 90 88 110 110 110 110 110 18 17 18 18 18 18 18 19 16 18 17 17 19 17 20 18 25 25 25 25 24 28 28 27 34 34 40 43 Greatest Support 52 | 32 32 26 30 30 30 36 52 20 20 20 20 20 21 21 21 21 21 22 20 28 22 28 28 28 27 27 35 37 37 30 39 42 39 39 46 Greatest Overweight (x) 10 | . 3 8 10 3 3 3 3 . . 1 . . . . . . . . . . . . . . . . . . . . . . . 1 . Average Overweight (x) . | . 2 4 3 3 3 3 2 . . . . . . . . . . . . . . . . . . . . . . . . . . . . Largest Inventory Capacity 25 | 8 25 25 25 25 25 25 25 25 8 8 8 8 8 8 8 8 8 8 8 8 8 8 8 10 10 10 10 10 10 10 10 10 10 10 5 Average Capacity 13 | 6 22 25 25 25 25 25 25 8 8 8 8 8 8 8 8 8 8 8 8 8 8 8 8 8 10 10 10 10 10 10 10 10 10 9 5 Most Carried 25 | 5 16 22 25 25 25 25 25 25 8 8 7 8 8 8 8 8 8 8 8 8 8 8 8 10 10 10 10 10 10 10 10 9 10 10 5 Average Carried 11 | 2 8 18 23 24 25 25 24 6 8 6 6 7 7 7 7 7 7 8 8 7 8 7 8 7 9 10 7 7 9 9 9 8 8 9 4 Final Capacity 25 | 8 25 25 25 25 25 25 25 8 8 8 8 8 8 8 8 8 8 8 8 8 8 8 8 10 10 10 10 10 10 10 10 10 10 5 5 Final Carried 25 | 1 16 18 25 25 25 25 25 8 8 6 7 8 8 8 8 8 8 8 8 8 8 8 8 9 10 10 8 8 10 10 10 7 10 5 2 Class Distribution -------------------- 36% | Wizard-Sprinter 30% | Mutant 29% | Hacker-Sprinter Dominant Class ---------------- Mutant | -10/Materials Mutant | -10/Mines Mutant | -9/Materials Mutant | -9/Mines Mutant | -9/Exiles Mutant | -8/Mines Mutant | -8/Materials Hacker-Sprinter | -7/Factory Hacker-Sprinter | -7/Waste Hacker-Sprinter | -7/Factory Hacker-Sprinter | -7/Lower Caves Hacker-Sprinter | -7/Lower Caves Hacker-Sprinter | -7/Zion Hacker-Sprinter | -6/Proximity Caves Hacker-Sprinter | -6/Factory Hacker-Sprinter | -6/Waste Hacker-Sprinter | -6/Factory Hacker-Sprinter | -6/Lower Caves Hacker-Sprinter | -6/Lower Caves Wizard-Sprinter | -6/Data Miner Wizard-Sprinter | -5/Proximity Caves Wizard-Sprinter | -5/Factory Wizard-Sprinter | -5/Waste Wizard-Sprinter | -5/Factory Wizard-Sprinter | -5/Extension Wizard-Sprinter | -5/Cetus Wizard-Sprinter | -4/Factory Wizard-Sprinter | -4/Waste Wizard-Sprinter | -4/Factory Wizard-Sprinter | -4/Armory Wizard-Sprinter | -4/Lab Wizard-Sprinter | -3/Research Wizard-Sprinter | -2/Research Wizard-Sprinter | -1/Access Hacker-Sprinter | -1/Command Resources | -11 -10 -10 -9 -9 -9 -8 -8 -7 -7 -7 -7 -7 -7 -6 -6 -6 -6 -6 -6 -6 -5 -5 -5 -5 -5 -5 -4 -4 -4 -4 -4 -3 -2 -1 -1 ----------- Run | Scr Mat Min Mat Min Exi Min Mat Fac Was Fac Low Low Zio Pro Fac Was Fac Low Low Dat Pro Fac Was Fac Ext Cet Fac Was Fac Arm Lab Res Res Acc Com Matter Collected 4208 | 178 331 128 717 330 . 20 66 201 . . 31 101 4 10 340 . 121 43 45 38 . 155 60 359 151 90 51 24 75 188 . 61 134 90 66 Remotely . | . . . . . . . . . . . . . . . . . . . . . . . . . . . . . . . . . . . . Salvage Created 6437 | . 689 333 880 307 . . 78 336 . . . 26 . 25 343 . 245 . . 29 . 872 . 1072 . 252 41 . 193 210 . 61 218 100 127 Parts 347 | . 54 21 62 16 . . 4 17 . . . 1 . 4 17 . 11 . . 4 . 28 . 46 . 8 4 . 10 15 . 4 6 4 11 Haulers Intercepted 16 | . 2 . 4 . . . 1 1 . . . . . . . . 1 . . . . 3 . 4 . . . . . . . . . . . Recyclers Shooed 5 | . . . . . . . . . . . . . . . . . . . . . . 1 . 2 2 . . . . . . . . . . Parts Field Recycled . | . . . . . . . . . . . . . . . . . . . . . . . . . . . . . . . . . . . . Retrieved Matter . | . . . . . . . . . . . . . . . . . . . . . . . . . . . . . . . . . . . . Parts Self-Destructed 19 | . . . . . . . . . . . . 1 . 4 . . . 3 11 . . . . . . . . . . . . . . . . Prevented 1 | . . . . . . . . . . . . . . . . . . 1 . . . . . . . . . . . . . . . . . Kills | -11 -10 -10 -9 -9 -9 -8 -8 -7 -7 -7 -7 -7 -7 -6 -6 -6 -6 -6 -6 -6 -5 -5 -5 -5 -5 -5 -4 -4 -4 -4 -4 -3 -2 -1 -1 ------- Run | Scr Mat Min Mat Min Exi Min Mat Fac Was Fac Low Low Zio Pro Fac Was Fac Low Low Dat Pro Fac Was Fac Ext Cet Fac Was Fac Arm Lab Res Res Acc Com Combat Hostiles Destroyed 51 | . 13 9 11 11 . . . . . . . . . . . . . . . . . . . . . 3 . . . 1 . 1 . . 2 Melee 7 | . . . . . . . . . . . . . . . . . . . . . . . . . . 3 . . . 1 . 1 . . 2 Guns 26 | . 3 6 6 11 . . . . . . . . . . . . . . . . . . . . . . . . . . . . . . . Cannons 16 | . 10 3 3 . . . . . . . . . . . . . . . . . . . . . . . . . . . . . . . . AOE 2 | . . . 2 . . . . . . . . . . . . . . . . . . . . . . . . . . . . . . . . Classes Destroyed 15 | . 6 1 3 3 . . . . . . . 1 . . . . . . . . . . . . . . . . . 1 . . . . . Worker 36 | . 4 1 3 2 . . . 3 . . . . . . 4 . 3 . . . . 5 . 4 . . 2 . . . . . 3 2 . Builder 2 | . . . 1 . . . . . . . . . . . . . . . . . . 1 . . . . . . . . . . . . . Tunneler 4 | . . . . 2 . . . . . . . . . . . . . . . . . 1 . . . . . . . . . . . 1 . Hauler 16 | . 2 . 4 . . . 1 1 . . . . . . . . 1 . . . . 3 . 4 . . . . . . . . . . . Recycler 13 | . . 1 1 . . . . 2 . . . . . . 2 . . . . . . 2 . 3 . . . . 1 . . . 1 . . Minesweeper 2 | . . . . . . . . . . . . 1 . 1 . . . . . . . . . . . . . . . . . . . . . Operator 6 | . 4 . 1 . . . . . . . . . . . . . . . . . . . . 1 . . . . . . . . . . . Watcher 31 | . 2 . 3 . . . 1 1 . . . . . . 1 . 3 . . . . 6 . 6 . 1 . . 2 4 . . . 1 . Swarmer 12 | . 6 6 . . . . . . . . . . . . . . . . . . . . . . . . . . . . . . . . . Grunt 20 | . 7 3 6 2 . . . . . . . . . . . . . . . . . . . . . 2 . . . . . . . . . Brawler 1 | . . . . 1 . . . . . . . . . . . . . . . . . . . . . . . . . . . . . . . Duelist 1 | . . . 1 . . . . . . . . . . . . . . . . . . . . . . . . . . . . . . . . Sentry 4 | . . . 4 . . . . . . . . . . . . . . . . . . . . . . . . . . . . . . . . Programmer 4 | . . . . . . . . . . . . . . . . . . . . . . . . . . . . . . 1 . 1 . . 2 Cetus Guard 1 | . . . . . . . . . . . . . . . . . . . . . . . . . . 1 . . . . . . . . . Assembled 8 | . . . . 8 . . . . . . . . . . . . . . . . . . . . . . . . . . . . . . . Best Kill Streak 6 | . 6 4 5 6 . . 1 2 . . . 1 . 1 2 . 2 . . 1 . 4 . 2 . 2 1 . 1 1 . 1 3 2 2 Combat Bots Only 6 | . 6 3 3 5 . . . . . . . . . . . . . . . . . . . . . 1 . . . 1 . 1 . . 2 Max Kills in Single Turn 4 | . 1 2 4 1 . . 1 1 . . . 1 . 1 1 . 1 . . 1 . 1 . 1 . 1 1 . 1 1 . 1 1 1 1 Gunslinging 1 | . . 1 . . . . . . . . . . . . . . . . . . . . . . . . . . . . . . . . . Exploded 2 | . . . 2 . . . . . . . . . . . . . . . . . . . . . . . . . . . . . . . . Melee 1 | . . . . . . . . . . . . . . . . . . . . . . . . . . 1 . . . 1 . 1 . . 1 Uniques/NPCs Destroyed 1 | . . . . . . . . . . . . . . . . . . . . 1 . . . . . . . . . . . . . . . Data Miner (-6/Data Miner) Combat | -11 -10 -10 -9 -9 -9 -8 -8 -7 -7 -7 -7 -7 -7 -6 -6 -6 -6 -6 -6 -6 -5 -5 -5 -5 -5 -5 -4 -4 -4 -4 -4 -3 -2 -1 -1 -------- Run | Scr Mat Min Mat Min Exi Min Mat Fac Was Fac Low Low Zio Pro Fac Was Fac Low Low Dat Pro Fac Was Fac Ext Cet Fac Was Fac Arm Lab Res Res Acc Com Damage Taken 7819 | . 413 458 608 312 . . 16 23 . . 49 . . . 14 . . . . 145 110 48 . 64 529 174 . . 403 124 . 888 82 . 3359 Core 2452 | . 100 45 63 25 . . . 23 . . 11 . . . . . . . . . 60 24 . 64 167 57 . . 55 . . 157 . . 1601 Absorbed by Shields 170 | . . . . . . . . 8 . . . . . . . . . . . . . . . . 26 . . . . . . . . . 136 Core Remaining (%) 85 | 100 . 42 . . . 78 100 . . . . . . 95 . . . . . . 92 . . . . 68 . . . . 95 87 100 . . Volleys Fired 251 | . 70 49 73 38 . . 11 . . . . . . . . . . . . . . . . . . 10 . . . . . . . . . Largest 2 | . 2 2 2 2 . . 2 . . . . . . . . . . . . . . . . . . 1 . . . . . . . . . Hottest 100 | . 100 80 91 46 . . 46 . . . . . . . . . . . . . . . . . . 33 . . . . . . . . . Shots Fired 477 | . 130 93 146 76 . . 22 . . . . . . . . . . . . . . . . . . 10 . . . . . . . . . Gun 383 | . 60 81 134 76 . . 22 . . . . . . . . . . . . . . . . . . 10 . . . . . . . . . Cannon 93 | . 70 12 11 . . . . . . . . . . . . . . . . . . . . . . . . . . . . . . . . Launcher 1 | . . . 1 . . . . . . . . . . . . . . . . . . . . . . . . . . . . . . . . Special . | . . . . . . . . . . . . . . . . . . . . . . . . . . . . . . . . . . . . Kinetic 364 | . 50 72 134 76 . . 22 . . . . . . . . . . . . . . . . . . 10 . . . . . . . . . Thermal 103 | . 80 12 11 . . . . . . . . . . . . . . . . . . . . . . . . . . . . . . . . Explosive 1 | . . . 1 . . . . . . . . . . . . . . . . . . . . . . . . . . . . . . . . Electromagnetic 9 | . . 9 . . . . . . . . . . . . . . . . . . . . . . . . . . . . . . . . . Robot Hit Streak 23 | . 11 10 23 15 . . 5 . . . . . . . . . . . . . . . . . . 1 . . . . . . . . . Robot Miss Streak 6 | . 6 5 3 3 . . 5 . . . . . . . . . . . . . . . . . . 3 . . . . . . . . . Penetration Max . | . . . . . . . . . . . . . . . . . . . . . . . . . . . . . . . . . . . . Secondary Targets 3 | . . 1 . 2 . . . . . . . . . . . . . . . . . . . . . . . . . . . . . . . Max Gunslinging Chain 1 | . . 1 . 1 . . . . . . . . . . . . . . . . . . . . . . . . . . . . . . . Shots Hit Robots 450 | . 62 61 98 44 . . 11 11 . . . 2 . 1 11 . 11 . 2 2 . 25 5 24 14 14 3 . 3 14 . 4 5 5 18 Core Hits 214 | . 32 26 35 26 . . 7 7 . . . 1 . 1 7 . 6 . . 1 . 14 . 18 . 9 2 . 3 5 . 1 3 2 8 Critical Kills 3 | . 1 . . 1 . . 1 . . . . . . . . . . . . . . . . . . . . . . . . . . . . Critical Parts Destroyed 3 | . . . 2 1 . . . . . . . . . . . . . . . . . . . . . . . . . . . . . . . Critical Strikes 8 | . 1 . 2 2 . . 1 . . . . . . . 1 . . . . . . . . . . 1 . . . . . . . . . Destroy 6 | . 1 . 2 2 . . 1 . . . . . . . . . . . . . . . . . . . . . . . . . . . . Puncture 2 | . . . . . . . . . . . . . . . 1 . . . . . . . . . . 1 . . . . . . . . . Melee Attacks 715 | . 1 . . . . . . 46 . 18 12 11 . 3 65 . 58 10 35 8 3 94 5 85 38 20 21 3 25 59 3 24 31 13 24 Impact 1 | . 1 . . . . . . . . . . . . . . . . . . . . . . . . . . . . . . . . . . Slashing 242 | . . . . . . . . 44 . 18 12 11 . 3 30 . . . . . . . . . . . . . . 29 3 24 31 13 24 Piercing 445 | . . . . . . . . . . . . . . . 34 . 58 10 33 7 3 92 . 85 28 20 21 3 25 26 . . . . . Sneak Attacks 98 | . . . . . . . . 10 . . . 1 . 1 9 . 4 . 2 2 . 17 5 14 12 . 3 . 1 7 . . 5 5 . Combat Hostiles 1 | . . . . . . . . . . . . . . . . . . . . . . . . . . . . . . 1 . . . . . Follow-up Attacks 18 | . . . . . . . . . . . . . . . 1 . . . . . . . . . . 2 . . 1 1 . 3 1 1 8 Damage Inflicted 18820 | . 956 581 1748 656 . . 155 919 . . . 125 . 90 947 . 954 . . 169 . 2857 . 2531 368 672 511 . 293 858 . 242 975 1067 1146 Guns 3000 | . 339 458 1303 656 . . 155 . . . . . . . . . . . . . . . . . . 89 . . . . . . . . . Cannons 924 | . 617 123 184 . . . . . . . . . . . . . . . . . . . . . . . . . . . . . . . . Explosions 261 | . . . 261 . . . . . . . . . . . . . . . . . . . . . . . . . . . . . . . . Melee 14635 | . . . . . . . . 919 . . . 125 . 90 947 . 954 . . 169 . 2857 . 2531 368 583 511 . 293 858 . 242 975 1067 1146 Ramming . | . . . . . . . . . . . . . . . . . . . . . . . . . . . . . . . . . . . . Kinetic 2841 | . 262 376 1303 656 . . 155 . . . . . . . . . . . . . . . . . . 89 . . . . . . . . . Thermal 1001 | . 694 123 184 . . . . . . . . . . . . . . . . . . . . . . . . . . . . . . . . Explosive 261 | . . . 261 . . . . . . . . . . . . . . . . . . . . . . . . . . . . . . . . Electromagnetic 82 | . . 82 . . . . . . . . . . . . . . . . . . . . . . . . . . . . . . . . . Impact . | . . . . . . . . . . . . . . . . . . . . . . . . . . . . . . . . . . . . Slashing 5188 | . . . . . . . . 919 . . . 125 . 90 305 . . . . . . . . . . . . . . 319 . 242 975 1067 1146 Piercing 9447 | . . . . . . . . . . . . . . . 642 . 954 . . 169 . 2857 . 2531 368 583 511 . 293 539 . . . . . Highest Corruption 16 | . 1 1 . . . . . 1 10 10 5 5 1 . . 7 7 7 7 7 7 . . . 1 1 . . 5 5 5 1 . . 16 Average Corruption 4 | . 1 1 . . . . . 1 1 9 5 3 1 . . 7 7 7 7 7 7 . . . 1 1 . . 3 5 5 1 . . 2 Corruption Purged 9 | . . . . . . . . . . 5 . 4 . . . . . . . . . . . . . . . . . . . . . . . Effects 154 | . 6 4 . . . . . 1 1 23 9 6 . . . . 31 7 20 2 5 . . . 2 1 . . 5 22 7 1 . . 1 Message Errors 45 | . 3 2 . . . . . . . 5 2 2 . . . . 9 2 7 . 1 . . . 2 1 . . 2 5 2 . . . . Matter Fused 35 | . . . . . . . . . . 5 2 3 . . . . 9 3 4 1 1 . . . . . . . 2 4 . . . . 1 Heat Flow Errors 16 | . . . . . . . . . . 2 3 . . . . . 2 . 1 . 1 . . . . . . . . 5 2 . . . . Energy Discharges 29 | . . 2 . . . . . 1 1 4 2 . . . . . 9 2 2 . 1 . . . . . . . . 3 2 . . . . Data Loss (minor) 20 | . 3 . . . . . . . . 3 . 1 . . . . 1 . 3 1 1 . . . . . . . 1 5 . 1 . . . Data Loss (major) 7 | . . . . . . . . . . 2 . . . . . . 1 . 3 . . . . . . . . . . . 1 . . . . Alerts 1 | . . . . . . . . . . 1 . . . . . . . . . . . . . . . . . . . . . . . . . Misdirections 1 | . . . . . . . . . . 1 . . . . . . . . . . . . . . . . . . . . . . . . . Overload Shots . | . . . . . . . . . . . . . . . . . . . . . . . . . . . . . . . . . . . . Overflow Damage 3632 | . 7 . 74 . . . . 148 . . . 53 . . 81 . 236 . . . . 1038 . 414 217 . 118 . . 358 . 22 364 502 . Projectiles 7 | . 7 . . . . . . . . . . . . . . . . . . . . . . . . . . . . . . . . . . Explosions 74 | . . . 74 . . . . . . . . . . . . . . . . . . . . . . . . . . . . . . . . Melee 3551 | . . . . . . . . 148 . . . 53 . . 81 . 236 . . . . 1038 . 414 217 . 118 . . 358 . 22 364 502 . Knockbacks . | . . . . . . . . . . . . . . . . . . . . . . . . . . . . . . . . . . . . Impact . | . . . . . . . . . . . . . . . . . . . . . . . . . . . . . . . . . . . . Kinetic . | . . . . . . . . . . . . . . . . . . . . . . . . . . . . . . . . . . . . Secondary . | . . . . . . . . . . . . . . . . . . . . . . . . . . . . . . . . . . . . Self-Inflicted Damage 51 | . . . 51 . . . . . . . . . . . . . . . . . . . . . . . . . . . . . . . . Shots 1 | . . . 1 . . . . . . . . . . . . . . . . . . . . . . . . . . . . . . . . Rammed . | . . . . . . . . . . . . . . . . . . . . . . . . . . . . . . . . . . . . Targets Rammed . | . . . . . . . . . . . . . . . . . . . . . . . . . . . . . . . . . . . . Kicked . | . . . . . . . . . . . . . . . . . . . . . . . . . . . . . . . . . . . . Crushed . | . . . . . . . . . . . . . . . . . . . . . . . . . . . . . . . . . . . . Highest Temperature 284 | . 270 40 114 116 . . 18 . . 233 198 . . . . . 116 . 233 159 284 104 72 198 120 201 60 83 200 245 227 81 4 . . Average Temperature 35 | . 58 15 30 33 . . 8 . . 115 88 . . . . . 66 . 131 100 169 27 30 29 39 51 18 52 39 27 46 23 4 . . Received Heat Transfer 918 | . 102 219 189 6 . . 9 . . . 18 . . . . . . . . 18 . . . . 60 54 . . 18 21 . 69 18 . 117 Effects 4 | . . . . . . . . . . . . . . . . . . . . . 2 . . . . . . . . 2 . . . . . Interference 4 | . . . . . . . . . . . . . . . . . . . . . 2 . . . . . . . . 2 . . . . . Siege Activations . | . . . . . . . . . . . . . . . . . . . . . . . . . . . . . . . . . . . . Robots Corrupted . | . . . . . . . . . . . . . . . . . . . . . . . . . . . . . . . . . . . . Combat Hostiles . | . . . . . . . . . . . . . . . . . . . . . . . . . . . . . . . . . . . . Parts Fried . | . . . . . . . . . . . . . . . . . . . . . . . . . . . . . . . . . . . . Impact Corruptions . | . . . . . . . . . . . . . . . . . . . . . . . . . . . . . . . . . . . . Robots Melted . | . . . . . . . . . . . . . . . . . . . . . . . . . . . . . . . . . . . . Combat Hostiles . | . . . . . . . . . . . . . . . . . . . . . . . . . . . . . . . . . . . . Parts Melted 2 | . . . . . . . . . . . . . . . . . . . . . . . . . . 2 . . . . . . . . . Heat Transferred 2062 | . 1470 259 333 . . . . . . . . . . . . . . . . . . . . . . . . . . . . . . . . Parts Sabotaged . | . . . . . . . . . . . . . . . . . . . . . . . . . . . . . . . . . . . . Parts Stolen . | . . . . . . . . . . . . . . . . . . . . . . . . . . . . . . . . . . . . Parts Stripped . | . . . . . . . . . . . . . . . . . . . . . . . . . . . . . . . . . . . . Power Chain Reactions . | . . . . . . . . . . . . . . . . . . . . . . . . . . . . . . . . . . . . Missiles Intercepted . | . . . . . . . . . . . . . . . . . . . . . . . . . . . . . . . . . . . . Alert | -11 -10 -10 -9 -9 -9 -8 -8 -7 -7 -7 -7 -7 -7 -6 -6 -6 -6 -6 -6 -6 -5 -5 -5 -5 -5 -5 -4 -4 -4 -4 -4 -3 -2 -1 -1 ------- Run | Scr Mat Min Mat Min Exi Min Mat Fac Was Fac Low Low Zio Pro Fac Was Fac Low Low Dat Pro Fac Was Fac Ext Cet Fac Was Fac Arm Lab Res Res Acc Com Peak Influence 552 | . 248 100 278 158 . . 79 204 39 134 . . . . 440 39 174 . . . . 552 63 214 183 190 156 172 450 328 . 359 316 453 458 Initial 289 | . . 13 . 43 . . . 6 24 27 . . . . 2 9 27 . . . . 9 63 44 29 32 95 59 64 221 . . 197 189 289 Average 107 | . 131 60 136 76 . . 32 99 26 55 . . . . 71 22 58 . . . . 155 63 96 50 152 118 122 128 101 . 181 239 223 376 Maximum Alert Level 2 | . 1 . 1 . . . . 1 . . . . . . 2 . . . . . . 2 . 1 . . . . 2 1 . 1 1 2 2 Low Security (%) 86 | 100 70 100 76 100 . 100 100 96 100 100 . . . . 98 100 100 . . . . 83 100 99 100 100 100 100 84 82 . 56 7 38 . Level 1 11 | . 29 . 23 . . . . 3 . . . . . . . . . . . . . 4 . . . . . . . 17 . 43 92 50 67 Level 2 2 | . . . . . . . . . . . . . . . 1 . . . . . . 12 . . . . . . 15 . . . . 11 32 Level 3 . | . . . . . . . . . . . . . . . . . . . . . . . . . . . . . . . . . . . . Level 4 . | . . . . . . . . . . . . . . . . . . . . . . . . . . . . . . . . . . . . Level 5 . | . . . . . . . . . . . . . . . . . . . . . . . . . . . . . . . . . . . . High Security . | . . . . . . . . . . . . . . . . . . . . . . . . . . . . . . . . . . . . Max Security . | . . . . . . . . . . . . . . . . . . . . . . . . . . . . . . . . . . . . Squads Dispatched 39 | . 4 1 1 . . . . 2 . 1 . . . . 3 . 5 . . . . 3 . 5 . . . . 2 3 . 3 3 1 2 Investigation 7 | . . 1 . . . . . . . 1 . . . . 1 . 1 . . . . . . 1 . . . . . . . . 1 . 1 Extermination 7 | . . . . . . . . 1 . . . . . . . . 1 . . . . 1 . 1 . . . . 1 1 . 1 . . . Reinforcement 25 | . 4 . 1 . . . . 1 . . . . . . 2 . 3 . . . . 2 . 3 . . . . 1 2 . 2 2 1 1 Assault . | . . . . . . . . . . . . . . . . . . . . . . . . . . . . . . . . . . . . Garrison . | . . . . . . . . . . . . . . . . . . . . . . . . . . . . . . . . . . . . Intercept . | . . . . . . . . . . . . . . . . . . . . . . . . . . . . . . . . . . . . Construction Impeded . | . . . . . . . . . . . . . . . . . . . . . . . . . . . . . . . . . . . . Haulers Reinforced 3 | . . . . . . . . . . . . . . . . . 1 . . . . . . 1 . . . . . 1 . . . . . Active Scanning Responses . | . . . . . . . . . . . . . . . . . . . . . . . . . . . . . . . . . . . . Cargo Convoy Interrupts 2 | . . . . . . . . . . . . . . . 1 . . . . . . . . . . . . . 1 . . . . . . Stealth | -11 -10 -10 -9 -9 -9 -8 -8 -7 -7 -7 -7 -7 -7 -6 -6 -6 -6 -6 -6 -6 -5 -5 -5 -5 -5 -5 -4 -4 -4 -4 -4 -3 -2 -1 -1 --------- Run | Scr Mat Min Mat Min Exi Min Mat Fac Was Fac Low Low Zio Pro Fac Was Fac Low Low Dat Pro Fac Was Fac Ext Cet Fac Was Fac Arm Lab Res Res Acc Com Distress Signals 24 | . 2 . 1 . . . 2 . . . . . . . 2 . . . . . . . . 3 2 1 1 . 2 . . 2 3 . 3 Communications Jammed . | . . . . . . . . . . . . . . . . . . . . . . . . . . . . . . . . . . . . Distress Signals . | . . . . . . . . . . . . . . . . . . . . . . . . . . . . . . . . . . . . Times Spotted 333 | . 36 10 26 16 . . 6 19 4 4 1 . . . 10 5 8 5 . 4 1 11 . 14 15 19 1 8 21 21 . 31 10 1 26 Peak Tracking Total 17 | . 7 3 6 3 . . 2 5 4 3 1 . . . 4 5 2 7 . 4 1 3 . 4 6 8 3 6 17 5 . 15 13 2 16 Tactical Retreats 49 | . . . 1 4 . . 1 5 . 2 . . . . 2 . 3 4 . . 1 1 . 4 3 1 2 1 2 3 . 6 . 1 2 Traps | -11 -10 -10 -9 -9 -9 -8 -8 -7 -7 -7 -7 -7 -7 -6 -6 -6 -6 -6 -6 -6 -5 -5 -5 -5 -5 -5 -4 -4 -4 -4 -4 -3 -2 -1 -1 ------- Run | Scr Mat Min Mat Min Exi Min Mat Fac Was Fac Low Low Zio Pro Fac Was Fac Low Low Dat Pro Fac Was Fac Ext Cet Fac Was Fac Arm Lab Res Res Acc Com Traps Triggered 20 | . 2 . . . . . . 2 . . . . . . 1 . . . . . . 3 . 3 2 . 1 . 2 2 . . 1 1 . Indirectly . | . . . . . . . . . . . . . . . . . . . . . . . . . . . . . . . . . . . . Trap Hack Attempts . | . . . . . . . . . . . . . . . . . . . . . . . . . . . . . . . . . . . . Triggered . | . . . . . . . . . . . . . . . . . . . . . . . . . . . . . . . . . . . . Disarmed . | . . . . . . . . . . . . . . . . . . . . . . . . . . . . . . . . . . . . Reprogrammed 2 | . . . . . . . . . . . . . . . . . . . . . . 2 . . . . . . . . . . . . . Reused 1 | . . . . . . . . . . . . . . . . . . . . . . 1 . . . . . . . . . . . . . Traps Extracted . | . . . . . . . . . . . . . . . . . . . . . . . . . . . . . . . . . . . . Installed 2 | . . . . . . . . . . . . 1 . 1 . . . . . . . . . . . . . . . . . . . . . Triggered 2 | . . . . . . . . . . . . . . . 1 . . . . . . 1 . . . . . . . . . . . . . Machines | -11 -10 -10 -9 -9 -9 -8 -8 -7 -7 -7 -7 -7 -7 -6 -6 -6 -6 -6 -6 -6 -5 -5 -5 -5 -5 -5 -4 -4 -4 -4 -4 -3 -2 -1 -1 ---------- Run | Scr Mat Min Mat Min Exi Min Mat Fac Was Fac Low Low Zio Pro Fac Was Fac Low Low Dat Pro Fac Was Fac Ext Cet Fac Was Fac Arm Lab Res Res Acc Com Machines Disabled 12 | . . . 1 1 . . . . . . . . . . . . . . 1 1 . . . . . 1 . . . 6 1 . . . . Max in Single Turn 1 | . . . 1 1 . . . . . . . . . . . . . . 1 1 . . . . . 1 . . . 1 1 . . . . Garrison Access 18 | . . . . . . . 1 2 . . . . . . 1 . 3 . . . . 3 . 2 . . 1 . . . . 1 2 2 . Energy Cycler 5 | . . . . . . . . . . . . . . . . . . . . . . . . . 5 . . . . . . . . . . Machines Sabotaged . | . . . . . . . . . . . . . . . . . . . . . . . . . . . . . . . . . . . . Garrisons Compromised 1 | . . . . . . . . . . . . . . . 1 . . . . . . . . . . . . . . . . . . . . Overloaded Fab Kills . | . . . . . . . . . . . . . . . . . . . . . . . . . . . . . . . . . . . . Fab Network Shutdowns 3 | . . . . . . . . . . . . . . . . . . . . . . 1 . . . . . . 1 . . . . 1 . Hacking | -11 -10 -10 -9 -9 -9 -8 -8 -7 -7 -7 -7 -7 -7 -6 -6 -6 -6 -6 -6 -6 -5 -5 -5 -5 -5 -5 -4 -4 -4 -4 -4 -3 -2 -1 -1 --------- Run | Scr Mat Min Mat Min Exi Min Mat Fac Was Fac Low Low Zio Pro Fac Was Fac Low Low Dat Pro Fac Was Fac Ext Cet Fac Was Fac Arm Lab Res Res Acc Com Machines Accessed 201 | . 6 1 7 . 4 . 5 15 . 13 1 1 1 . 15 . 20 1 5 4 . 18 . 17 10 4 6 . 13 17 1 2 3 7 4 Terminals 124 | . 5 . 5 . . . 4 12 . 8 . . . . 11 . 11 . 1 . . 11 . 12 10 4 4 . 8 9 . 1 . 4 4 Fabricators 19 | . . . . . . . . 1 . . . . . . 1 . 3 . . . . 3 . 1 . . . . 3 6 . . . 1 . Repair Stations 11 | . 1 . 1 . . . . . . 2 . . . . . . 1 . . . . . . 1 . . . . 2 2 . . 1 . . Recycling Units 1 | . . . . . . . . . . . . . . . 1 . . . . . . . . . . . . . . . . . . . . Scanalyzers 10 | . . . 1 . . . . . . 3 . . . . 1 . 2 . . . . 1 . 1 . . 1 . . . . . . . . Garrison Access 18 | . . . . . . . 1 2 . . . . . . 1 . 3 . . . . 3 . 2 . . 1 . . . . 1 2 2 . Total Hacks 717 | . 19 1 19 . 27 . 9 43 . 35 1 1 6 . 55 . 62 1 8 27 . 93 . 63 29 13 26 . 61 74 1 4 7 22 10 Successful 592 | . 11 1 11 . 27 . 6 33 . 23 1 1 6 . 44 . 46 1 8 27 . 77 . 55 25 10 23 . 57 70 1 3 6 13 6 Failed 124 | . 8 . 8 . . . 3 10 . 12 . . . . 10 . 16 . . . . 16 . 8 4 3 3 . 4 4 . 1 1 9 4 Catastrophic 8 | . . . 1 . . . 1 . . 1 . . . . . . 1 . . . . 3 . . . . . . 1 . . . . . . Database Lockouts 1 | . . . . . . . . . . . . . . . 1 . . . . . . . . . . . . . . . . . . . . Manual 225 | . 5 . 4 . 1 . 3 22 . 10 . . . . 21 . 17 . . . . 39 . 21 8 1 11 . 20 24 . 2 . 14 2 Terminals 486 | . 17 . 14 . . . 8 35 . 22 . . . . 48 . 39 . 1 . . 69 . 53 29 13 23 . 41 44 . 3 . 17 10 Fabricators 85 | . . . . . . . . 4 . . . . . . 3 . 13 . . . . 20 . 4 . . . . 12 26 . . . 3 . Repair Stations 28 | . 2 . 1 . . . . . . 4 . . . . . . 2 . . . . . . 2 . . . . 8 4 . . 5 . . Recycling Units 1 | . . . . . . . . . . . . . . . 1 . . . . . . . . . . . . . . . . . . . . Scanalyzers 25 | . . . 4 . . . . . . 9 . . . . 2 . 5 . . . . 1 . 2 . . 2 . . . . . . . . Garrison Access 20 | . . . . . . . 1 4 . . . . . . 1 . 3 . . . . 3 . 2 . . 1 . . . . 1 2 2 . Terminal Hacks 385 | . 8 1 7 . 27 . 3 18 . 12 1 1 6 . 29 . 22 1 8 27 . 43 . 40 20 10 17 . 35 34 1 2 . 7 5 Record 56 | . . . . . 26 . . . . 1 . . . . . . . . 5 11 . 2 . . . 9 . . . . 1 1 . . . Part Schematic 76 | . . . . . . . . 2 . 2 . . 6 . 7 . 5 . . 7 . 9 . 12 1 . 8 . 8 7 . . . 2 . Robot Schematic 13 | . . . . . . . . 1 . . . . . . 1 . . . . 6 . . . 1 2 . . . . 1 . . . . 1 Robot Analysis 11 | . . . . . . . . . . . . . . . . . . . . . . 4 . . 2 . . . 1 2 . . . . 2 Prototype ID Bank 33 | . 2 . 1 . . . 1 2 . 1 . . . . 2 . 3 . . 3 . 3 . 5 2 . . . 5 3 . . . . . Open Door 18 | . . 1 . . . . . . . . 1 1 . . . . . 1 3 . . . . 2 4 1 . . . . . . . 3 1 Level Access Points 2 | . . . . . . . . . . . . . . . . . . . . . . . . . . . . . . 1 . 1 . . . Branch Access Points 10 | . . . 1 . . . . . . 1 . . . . 1 . 1 . . . . . . 1 1 . 1 . 1 1 . . . 1 . Machine Index 5 | . . . . . . . . 1 . . . . . . . . 1 . . . . . . 1 . . 1 . . 1 . . . . . Terminal Index 9 | . . . . . . . . 1 . 1 . . . . 1 . . . . . . 1 . . 2 . . . 1 1 . . . . 1 Fabricator Index 7 | . . . . . . . . 1 . . . . . . 1 . . . . . . 2 . . . . . . 1 1 . . . 1 . Repair Station Index 2 | . . . . . . . . . . . . . . . . . . . . . . 1 . . . . . . 1 . . . . . . Scanalyzer Index 1 | . . . . . . . . . . . . . . . . . . . . . . 1 . . . . . . . . . . . . . Garrison Index 2 | . . . . . . . . . . . . . . . . . . . . . . 1 . . . . . . . 1 . . . . . Alert Level 7 | . . . . . . . . . . . . . . . 1 . . . . . . 1 . 1 1 . . . 1 2 . . . . . Unreport Threat 19 | . . . 1 . . . . . . . . . . . 5 . . . . . . 4 . 1 1 . . . 3 4 . . . . . Locate Traps 53 | . 2 . 3 . . . . 5 . 4 . . . . 5 . 5 . . . . 7 . 6 2 . 4 . 7 3 . . . . . Reprogram Traps 1 | . . . . . . . . . . . . . . . . . . . . . . 1 . . . . . . . . . . . . . Reinforcement Status 1 | . . . . . . . . . . . . . . . . . . . . . . . . . . . 1 . . . . . . . . Recall Investigation 3 | . 1 . . . . . . . . . . . . . 1 . . . . . . . . 1 . . . . . . . . . . . Recall Extermination 4 | . . . . . . . . . . . . . . . . . 1 . . . . 1 . . . . . . 1 1 . . . . . Recall Reinforcements 2 | . . . . . . . . 1 . . . . . . . . . . . . . . . 1 . . . . . . . . . . . Hauler Manifests 7 | . 1 . . . . . . 1 . . . . . . . . 1 . . . . 1 . 1 . . 1 . 1 . . . . . . Registered Components 2 | . 1 . . . . . 1 . . . . . . . . . . . . . . . . . . . . . . . . . . . . Registered Prototypes 4 | . . . . . . . . . . . . . . . 1 . . . . . . . . 1 1 . . . 1 . . . . . . Zone Layout 36 | . 1 . 1 . . . 1 3 . 2 . . . . 3 . 5 . . . . 4 . 6 1 . 1 . 3 5 . . . . . EX-Prototype ID Bank 1 | . . . . . 1 . . . . . . . . . . . . . . . . . . . . . . . . . . . . . . Fabricator Hacks 58 | . . . . . . . . 3 . . . . . . 2 . 10 . . . . 14 . 2 . . . . 8 17 . . . 2 . Network Status 9 | . . . . . . . . . . . . . . . . . 1 . . . . 5 . . . . . . 2 1 . . . . . Load Schematic 23 | . . . . . . . . 2 . . . . . . 1 . 4 . . . . 4 . 1 . . . . 3 7 . . . 1 . Build 26 | . . . . . . . . 1 . . . . . . 1 . 5 . . . . 5 . 1 . . . . 3 9 . . . 1 . Repair Station Hacks 25 | . 1 . . . . . . . . 4 . . . . . . 2 . . . . . . 2 . . . . 8 4 . . 4 . . Scan Component 13 | . 1 . . . . . . . . 2 . . . . . . 1 . . . . . . 1 . . . . 4 2 . . 2 . . Repair 12 | . . . . . . . . . . 2 . . . . . . 1 . . . . . . 1 . . . . 4 2 . . 2 . . Recycling Unit Hacks . | . . . . . . . . . . . . . . . . . . . . . . . . . . . . . . . . . . . . Scanalyzer 22 | . . . 4 . . . . . . 6 . . . . 2 . 5 . . . . 1 . 2 . . 2 . . . . . . . . Insert Component 11 | . . . 2 . . . . . . 3 . . . . 1 . 2 . . . . 1 . 1 . . 1 . . . . . . . . Analyze 11 | . . . 2 . . . . . . 3 . . . . 1 . 3 . . . . . . 1 . . 1 . . . . . . . . Garrison Access Hacks 18 | . . . . . . . 1 2 . . . . . . 1 . 3 . . . . 3 . 2 . . 1 . . . . 1 2 2 . Seal Access 18 | . . . . . . . 1 2 . . . . . . 1 . 3 . . . . 3 . 2 . . 1 . . . . 1 2 2 . Unauthorized Hacks 84 | . 2 . . . . . 2 10 . 1 . . . . 10 . 4 . . . . 16 . 7 5 . 3 . 6 15 . . . 2 1 Terminals 61 | . 2 . . . . . 2 10 . 1 . . . . 8 . 2 . . . . 10 . 5 5 . 3 . 2 9 . . . 1 1 Track 18 | . . . . . . . 1 3 . . . . . . 2 . . . . . . 3 . 3 2 . 1 . . 3 . . . . . Assimilate 15 | . . . . . . . . 3 . . . . . . 4 . . . . . . 3 . 1 . . . . . 2 . . . 1 1 Botnet 23 | . 2 . . . . . 1 3 . 1 . . . . 2 . 2 . . . . 4 . 1 1 . 2 . 2 2 . . . . . Disrupt 5 | . . . . . . . . 1 . . . . . . . . . . . . . . . . 2 . . . . 2 . . . . . Fabricators 22 | . . . . . . . . . . . . . . . 1 . 2 . . . . 6 . 2 . . . . 4 6 . . . 1 . Prioritize 14 | . . . . . . . . . . . . . . . 1 . 1 . . . . 3 . 1 . . . . 2 5 . . . 1 . Siphon 8 | . . . . . . . . . . . . . . . . . 1 . . . . 3 . 1 . . . . 2 1 . . . . . Repair Stations . | . . . . . . . . . . . . . . . . . . . . . . . . . . . . . . . . . . . . Recycling Units 1 | . . . . . . . . . . . . . . . 1 . . . . . . . . . . . . . . . . . . . . Tunnel 1 | . . . . . . . . . . . . . . . 1 . . . . . . . . . . . . . . . . . . . . Scanalyzers . | . . . . . . . . . . . . . . . . . . . . . . . . . . . . . . . . . . . . Garrison Access . | . . . . . . . . . . . . . . . . . . . . . . . . . . . . . . . . . . . . Data Cores Recovered 1 | . . . . . . . . . . . . . . . . . . . . . . . . . 1 . . . . . . . . . . Used . | . . . . . . . . . . . . . . . . . . . . . . . . . . . . . . . . . . . . Hacking Detections 110 | . 5 . 6 . . . 4 12 . 10 . . . . 8 . 15 . . . . 9 . 9 5 1 2 . 6 10 . 1 1 3 3 Full Trace Events 4 | . 1 . . . . . . . . 1 . . . . . . 1 . . . . . . . . . . . . . . . . . 1 Feedback Events . | . . . . . . . . . . . . . . . . . . . . . . . . . . . . . . . . . . . . Feedback Blocked . | . . . . . . . . . . . . . . . . . . . . . . . . . . . . . . . . . . . . Robot Schematics Acquired 13 | . . . . . . . . 1 . . . . . . 1 . . . . 6 . . . 1 2 . . . . 1 . . . . 1 Robots Built . | . . . . . . . . . . . . . . . . . . . . . . . . . . . . . . . . . . . . Matter . | . . . . . . . . . . . . . . . . . . . . . . . . . . . . . . . . . . . . Time . | . . . . . . . . . . . . . . . . . . . . . . . . . . . . . . . . . . . . Total Robot Build Rating . | . . . . . . . . . . . . . . . . . . . . . . . . . . . . . . . . . . . . Part Schematics Acquired 82 | . . . 1 . . . . 2 . 3 . . 6 . 8 . 6 . . 7 . 9 . 13 1 . 9 . 8 7 . . . 2 . Parts Built 24 | . . . . . . . . 2 . . . . . . 2 . 3 . . . . 4 . 1 . . . . 3 8 . . . 1 . Matter 6642 | . . . . . . . . 146 . . . . . . 190 . 921 . . . . 1104 . 318 . . . . 877 2669 . . . 417 . Time 2000 | . . . . . . . . 24 . . . . . . 47 . 313 . . . . 409 . 84 . . . . 338 711 . . . 74 . Total Part Build Rating 149 | . . . . . . . . 6 . . . . . . 10 . 17 . . . . 24 . 6 . . . . 21 56 . . . 9 . Parts Repaired 12 | . . . . . . . . . . 2 . . . . . . 1 . . . . . . 1 . . . . 4 2 . . 2 . . Time 663 | . . . . . . . . . . 138 . . . . . . 62 . . . . . . 89 . . . . 255 57 . . 62 . . Parts Recycled . | . . . . . . . . . . . . . . . . . . . . . . . . . . . . . . . . . . . . Recycled Matter . | . . . . . . . . . . . . . . . . . . . . . . . . . . . . . . . . . . . . Retrieved Matter . | . . . . . . . . . . . . . . . . . . . . . . . . . . . . . . . . . . . . Retrieved Components . | . . . . . . . . . . . . . . . . . . . . . . . . . . . . . . . . . . . . Parts Scanalyzed 7 | . . . 2 . . . . . . 1 . . . . 1 . 1 . . . . . . 1 . . 1 . . . . . . . . Part Schematics Acquired 6 | . . . 1 . . . . . . 1 . . . . 1 . 1 . . . . . . 1 . . 1 . . . . . . . . Parts Damaged . | . . . . . . . . . . . . . . . . . . . . . . . . . . . . . . . . . . . . Bothacking | -11 -10 -10 -9 -9 -9 -8 -8 -7 -7 -7 -7 -7 -7 -6 -6 -6 -6 -6 -6 -6 -5 -5 -5 -5 -5 -5 -4 -4 -4 -4 -4 -3 -2 -1 -1 ------------ Run | Scr Mat Min Mat Min Exi Min Mat Fac Was Fac Low Low Zio Pro Fac Was Fac Low Low Dat Pro Fac Was Fac Ext Cet Fac Was Fac Arm Lab Res Res Acc Com Used RIF Installer . | . . . . . . . . . . . . . . . . . . . . . . . . . . . . . . . . . . . . Robots Hacked 11 | . . . . . . . . 1 . . . . . . 1 . . . 2 1 . 1 5 . . . . . . . . . . . . Non-combat 4 | . . . . . . . . 1 . . . . . . 1 . . . 1 . . 1 . . . . . . . . . . . . . Combat 7 | . . . . . . . . . . . . . . . . . . . 1 1 . . 5 . . . . . . . . . . . . Robot Hacks Applied 11 | . . . . . . . . 1 . . . . . . 1 . . . 2 1 . 1 5 . . . . . . . . . . . . parse_system 8 | . . . . . . . . . . . . . . . . . . . 2 1 . . 5 . . . . . . . . . . . . find_chute 3 | . . . . . . . . 1 . . . . . . 1 . . . . . . 1 . . . . . . . . . . . . . Relay Couplers Released . | . . . . . . . . . . . . . . . . . . . . . . . . . . . . . . . . . . . . Robots Rewired 22 | . . . . . . . . . . . . . . . . . . . . . . . . . 7 . . . . 15 . . . . . Allies Hacked 1 | . . . . . . . . . . . . . . . . . . . . . . . . . . 1 . . . . . . . . . Hacks Repelled . | . . . . . . . . . . . . . . . . . . . . . . . . . . . . . . . . . . . . Allies | -11 -10 -10 -9 -9 -9 -8 -8 -7 -7 -7 -7 -7 -7 -6 -6 -6 -6 -6 -6 -6 -5 -5 -5 -5 -5 -5 -4 -4 -4 -4 -4 -3 -2 -1 -1 -------- Run | Scr Mat Min Mat Min Exi Min Mat Fac Was Fac Low Low Zio Pro Fac Was Fac Low Low Dat Pro Fac Was Fac Ext Cet Fac Was Fac Arm Lab Res Res Acc Com Total Allies 100 | . . 4 . . . . . 1 . . . . . . 2 . . . 2 . . 2 20 1 17 3 . 19 . 27 . . . 1 1 Largest Group 20 | . . 3 3 . . . . 1 . . . . . . 2 . . . 2 . . 1 20 1 8 8 . 19 . 13 5 4 . 1 1 Highest-Rated Group 739 | . . 40 40 . . . . 10 . . . . . . 20 . . . 62 . . 26 739 10 348 328 . 714 . 649 179 149 . 45 45 Highest-Rated Ally 156 | . . 31 16 . . . . 10 . . . . . . 10 . . . 31 . . 26 50 10 156 142 . 50 . 65 65 65 . 45 45 Total Orders 2 | . . . . . . . . . . . . . . . . . . . . . . . . . . . . . . . 2 . . . . STAY 1 | . . . . . . . . . . . . . . . . . . . . . . . . . . . . . . . 1 . . . . FOLLOW 1 | . . . . . . . . . . . . . . . . . . . . . . . . . . . . . . . 1 . . . . Ally Attacks 431 | . . 6 23 . . . . . . . . . . . . . . . 8 . . . . . 51 67 . 127 . 147 . 2 . . . Total Damage 14452 | . . 22 209 . . . . . . . . . . . . . . . 127 . . . . . 1062 1376 . 6184 . 5428 . 44 . . . Kills 53 | . . . 6 . . . . . . . . . . . . . . . 4 . . . . . 6 6 . 11 . 20 . . . . . Allies Corrupted . | . . . . . . . . . . . . . . . . . . . . . . . . . . . . . . . . . . . . Allies Melted 1 | . . . . . . . . . . . . . . . . . . . . . . . . . . 1 . . . . . . . . . Intel | -11 -10 -10 -9 -9 -9 -8 -8 -7 -7 -7 -7 -7 -7 -6 -6 -6 -6 -6 -6 -6 -5 -5 -5 -5 -5 -5 -4 -4 -4 -4 -4 -3 -2 -1 -1 ------- Run | Scr Mat Min Mat Min Exi Min Mat Fac Was Fac Low Low Zio Pro Fac Was Fac Low Low Dat Pro Fac Was Fac Ext Cet Fac Was Fac Arm Lab Res Res Acc Com Robot Analysis Total 11 | . . . . . . . . . . . . . . . . . . . . . . 4 . . 2 . . . 1 2 . . . . 2 Derelict Logs Recovered 13 | . . 2 . 2 . . . . . . 1 1 1 2 . . . 1 1 . 2 . . . . . . . . . . . . . . Drone Launches . | . . . . . . . . . . . . . . . . . . . . . . . . . . . . . . . . . . . . Drone Recoveries . | . . . . . . . . . . . . . . . . . . . . . . . . . . . . . . . . . . . . Decoded 0b10 Intel 3 | . . . . . . . . . . . . . . . 3 . . . . . . . . . . . . . . . . . . . . Traps 1 | . . . . . . . . . . . . . . . 1 . . . . . . . . . . . . . . . . . . . . Items 2 | . . . . . . . . . . . . . . . 2 . . . . . . . . . . . . . . . . . . . . Exploration | -11 -10 -10 -9 -9 -9 -8 -8 -7 -7 -7 -7 -7 -7 -6 -6 -6 -6 -6 -6 -6 -5 -5 -5 -5 -5 -5 -4 -4 -4 -4 -4 -3 -2 -1 -1 ------------- Run | Scr Mat Min Mat Min Exi Min Mat Fac Was Fac Low Low Zio Pro Fac Was Fac Low Low Dat Pro Fac Was Fac Ext Cet Fac Was Fac Arm Lab Res Res Acc Com Turns Passed 19023 | 35 1258 1233 1184 784 536 217 493 888 16 624 249 387 248 169 929 25 978 250 642 61 208 1161 98 1334 725 328 296 172 795 1024 249 348 350 549 180 Spaces Moved 32585 | 29 789 724 704 493 427 169 369 1570 60 773 728 870 927 538 2463 79 2830 743 1331 126 688 3192 367 3297 751 468 663 483 1365 1371 270 774 745 987 422 Core 10 | 10 . . . . . . . . . . . . . . . . . . . . . . . . . . . . . . . . . . . Treads . | . . . . . . . . . . . . . . . . . . . . . . . . . . . . . . . . . . . . Legs . | . . . . . . . . . . . . . . . . . . . . . . . . . . . . . . . . . . . . Wheels 3694 | 19 789 724 704 493 427 169 369 . . . . . . . . . . . . . . . . . . . . . . . . . . . . Hover . | . . . . . . . . . . . . . . . . . . . . . . . . . . . . . . . . . . . . Flight 28881 | . . . . . . . . 1570 60 773 728 870 927 538 2463 79 2830 743 1331 126 688 3192 367 3297 751 468 663 483 1365 1371 270 774 745 987 422 Fastest Speed 14 | 50 100 135 110 125 125 125 120 27 27 26 26 26 26 26 26 26 26 23 26 14 23 19 19 17 17 17 17 15 18 23 22 22 25 25 19 Average Speed 35 | 82 126 148 125 125 125 127 121 27 27 26 26 26 26 26 26 26 26 25 26 23 25 20 19 18 17 17 19 21 21 23 23 24 25 25 27 Slowest Speed 230 | 100 135 200 230 125 125 131 131 31 27 94 26 26 26 26 26 26 26 26 26 26 26 23 21 21 17 17 24 22 23 23 25 25 25 98 29 Overloaded Moves 93 | . . . . . . . . . . . . . . . . . . 4 . 26 10 . . . . . . 17 . . . 36 . . . Propulsion Burnouts 1 | . . . . . . . . . . . . . . . . . . . . . . . . . . . . 1 . . . . . . . Robots Hopped 64 | . . . . . . . . 4 . 2 . . . . 7 . 8 . . . . 3 . 18 4 . . . 12 3 . 3 . . . Cave-ins Triggered . | . . . . . . . . . . . . . . . . . . . . . . . . . . . . . . . . . . . . Exploration Rate (%) 62 | 3 95 97 58 88 87 41 34 42 80 20 85 88 88 64 57 80 56 82 96 80 83 53 90 54 82 89 15 88 34 59 96 22 22 19 25 Regions Visited 35 Branch Regions 17 Pre-discovered Areas 7 | . . . . . . . . . . . . . 4 1 1 . . . . 1 . . . . . . . . . . . . . . . Known Exits Taken 21 | . . . 1 . 1 . . . . 1 1 1 1 1 . . 1 1 1 1 1 . . 1 1 1 . . 1 1 1 1 1 1 . Unknown Exits Taken 6 | 1 1 1 . 1 . 1 1 . . . . . . . . . . . . . . . . . . . . . . . . . . . . Scrap Searched 21 | . . 2 . 1 . 1 . . . . 1 3 3 1 . . . 2 4 . 3 . . . . . . . . . . . . . . Spaces Dug 452 | . 1 . . . . . . 33 . 18 12 9 . 2 49 . 41 10 25 . 3 62 . 56 22 1 18 3 20 28 . 12 21 4 2 Terrain Destroyed 454 | . 1 . 2 . . . . 33 . 18 12 9 . 2 49 . 41 10 25 . 3 62 . 56 22 1 18 3 20 28 . 12 21 4 2 Melee 452 | . 1 . . . . . . 33 . 18 12 9 . 2 49 . 41 10 25 . 3 62 . 56 22 1 18 3 20 28 . 12 21 4 2 Projectile . | . . . . . . . . . . . . . . . . . . . . . . . . . . . . . . . . . . . . AOE 2 | . . . 2 . . . . . . . . . . . . . . . . . . . . . . . . . . . . . . . . Terrain Rammed . | . . . . . . . . . . . . . . . . . . . . . . . . . . . . . . . . . . . . Walls Destroyed . | . . . . . . . . . . . . . . . . . . . . . . . . . . . . . . . . . . . . Machines Disabled . | . . . . . . . . . . . . . . . . . . . . . . . . . . . . . . . . . . . . Actions | -11 -10 -10 -9 -9 -9 -8 -8 -7 -7 -7 -7 -7 -7 -6 -6 -6 -6 -6 -6 -6 -5 -5 -5 -5 -5 -5 -4 -4 -4 -4 -4 -3 -2 -1 -1 --------- Run | Scr Mat Min Mat Min Exi Min Mat Fac Was Fac Low Low Zio Pro Fac Was Fac Low Low Dat Pro Fac Was Fac Ext Cet Fac Was Fac Arm Lab Res Res Acc Com Total 38514 | 39 912 802 884 593 429 170 393 1957 59 1164 768 1014 935 562 2649 84 2976 783 1575 145 712 3554 391 3875 1287 678 797 547 1814 2001 449 898 868 1277 473 Wait 4489 | . 16 15 31 54 . . 8 280 . 364 28 125 . 17 103 . 78 30 206 5 22 235 8 482 463 182 99 56 416 530 162 107 86 256 25 Move 32429 | 28 788 723 703 492 426 168 368 1562 59 768 727 869 926 537 2449 78 2813 742 1330 125 687 3186 366 3262 742 467 663 482 1340 1365 269 767 744 986 422 Hop 61 | . . . . . . . . 4 . 2 . . . . 7 . 8 . . . . 3 . 16 4 . . . 12 2 . 3 . . . Pick Up 149 | 5 15 7 31 2 1 . 3 7 . 4 1 4 4 2 9 3 7 . . 2 . 6 . 7 3 . 1 3 5 6 1 . 7 2 1 Fast Attach 65 | 2 9 2 5 . . 1 . . . 2 . . . . 2 . 1 . 2 . . 1 6 4 1 . 2 . 5 3 7 . 1 7 2 Attach 66 | 4 . 5 8 1 . . 1 13 . 1 . 1 1 . 2 . . . . . . 4 . 1 1 . 1 1 1 4 . 3 3 6 4 Detach 5 | . 1 . . . . . . . . . . . . . . . . . . . . . . 1 . . 2 . . . . . . 1 . Swap 90 | . 5 . 10 3 1 . . 5 . 1 . 1 . . 5 . 5 1 . 3 . 10 . 13 5 2 4 . 6 5 1 2 1 . 1 Drop 156 | . 7 1 23 3 1 1 2 22 . 4 . 2 4 2 8 3 6 . 2 2 . 8 6 6 1 . 4 2 6 7 6 . 1 11 5 Fire 251 | . 70 49 73 38 . . 11 . . . . . . . . . . . . . . . . . . 10 . . . . . . . . . Melee 669 | . 1 . . . . . . 46 . 18 12 11 . 3 64 . 58 10 35 8 3 93 5 83 38 17 21 3 23 52 3 16 25 8 13 Ram . | . . . . . . . . . . . . . . . . . . . . . . . . . . . . . . . . . . . . Kick . | . . . . . . . . . . . . . . . . . . . . . . . . . . . . . . . . . . . . Crush . | . . . . . . . . . . . . . . . . . . . . . . . . . . . . . . . . . . . . Escape Stasis 55 | . . . . . . . . 18 . . . . . . . . . . . . . 8 . . 29 . . . . . . . . . . Rewire 27 | . . . . . . . . . . . . . . . . . . . . . . . . . . . . . . 27 . . . . . Trap 2 | . . . . . . . . . . . . 1 . 1 . . . . . . . . . . . . . . . . . . . . . Miscellaneous . | . . . . . . . . . . . . . . . . . . . . . . . . . . . . . . . . . . . . Route ------- -11/Scrapyard -10/Materials (discovered 4 exits: *Mat x3 / *Min) -10/Mines (discovered 2 exits: *Mat x2) -9/Materials (discovered 3 exits: *Mat / *Min / Sto) -9/Mines (discovered 4 exits: *Mat x2 / *Exi / *Zio) -9/Exiles (discovered 2 exits: *Min x2) -8/Mines -8/Materials -7/Factory (discovered 2 exits: *Fac / *Low) -7/Waste -7/Factory (discovered 2 exits: *Low x2) -7/Lower Caves -7/Lower Caves -7/Zion -6/Proximity Caves -6/Factory (discovered 4 exits: *Fac x2 / *Low x2) -6/Waste -6/Factory (discovered 4 exits: *Fac x2 / *Low x2) -6/Lower Caves -6/Lower Caves (discovered 2 exits: *Fac / *Dat) -6/Data Miner -5/Proximity Caves -5/Factory (discovered 5 exits: *Fac x2 / *Upp x2 / *Ext) -5/Waste -5/Factory (discovered 6 exits: *Fac x2 / *Upp x2 / *Ext x2) -5/Extension (discovered 3 exits: *Fac x2 / *Cet) -5/Cetus (discovered 2 exits: *Fac / [*Arc]) -4/Factory (discovered 4 exits: *Res / Upp x2 / Arm) -4/Waste -4/Factory (discovered 3 exits: *Upp x2 / *Arm) -4/Armory (discovered 3 exits: *Res x2 / *Lab) -4/Lab -3/Research (discovered 4 exits: *Res x3 / *Tes) -2/Research -1/Access -1/Command History --------- Turn | Location | Event 16 | -11/Scrapyard | Discovered new exit (range 14) 36 | -11/Scrapyard | Entered Materials 302 | -10/Materials | Build established: Mutant 320 | -10/Materials | Discovered new exit (range 11) 370 | -10/Materials | Discovered new exit (range 18) 623 | -10/Materials | Discovered new exit (range 16) 762 | -10/Materials | Discovered new exit (range 16) 1294 | -10/Materials | Entered Mines 1367 | -10/Mines | Core integrity fell below 50% 1482 | -10/Mines | Discovered new exit (range 13) 1488 | -10/Mines | Learned location of 1 exit from Materials 1581 | -10/Mines | Discovered new exit (range 10) 1586 | -10/Mines | Received a Mining Laser from a helpful Derelict 1782 | -10/Mines | Met a Derelict shopkeep closing up shop 2036 | -10/Mines | Received a Rocket Launcher from a helpful Derelict 2242 | -10/Mines | Lost 6 parts (1p2n1u2w) 2380 | -10/Mines | Assisted by bots powering up and referring to "LRC-V3" 2527 | -10/Mines | Entered Materials 2527 | -9/Materials | Accompanied by 3 allies 2527 | -9/Materials | Evolved 2 slots: Propulsion x1, Utility x1 2528 | -9/Materials | Identified exit to Mines 2529 | -9/Materials | Identified exit to Storage 2992 | -9/Materials | Lost 3 parts (2n1u) 3471 | -9/Materials | Discovered new exit (range 16) 3711 | -9/Materials | Entered Mines 3738 | -9/Mines | Met a Derelict bent on vengeance 3863 | -9/Mines | Joined a pair of Derelicts in attacking an 0b10 outpost 3917 | -9/Mines | Assembled infested the area 4180 | -9/Mines | Discovered new exit (range 7) 4257 | -9/Mines | Learned 2 Materials zone layouts 4401 | -9/Mines | Discovered new exit (range 9) 4464 | -9/Mines | Learned 2 Materials zone layouts 4465 | -9/Mines | A Derelict revealed a hidden shortcut to a safe place 4490 | -9/Mines | Deemed a non-threat by the Exiles lab entrance 4490 | -9/Mines | Discovered new exit (range 5) 4495 | -9/Mines | Entered Exiles 4496 | -9/Exiles | Identified exit to Mines 4529 | -9/Exiles | Met 8R-AWN 4547 | -9/Exiles | Met EX-HEX 4580 | -9/Exiles | Met EX-BIN 4689 | -9/Exiles | Aligned with FarCom system 4690 | -9/Exiles | Given EX-Vault access code 4719 | -9/Exiles | Opened EX-Vault 4731 | -9/Exiles | Found Superbattery 4757 | -9/Exiles | Warned to stay clear of 0b10 Research branches 4793 | -9/Exiles | Met EX-DEC 4853 | -9/Exiles | Visited The Gauntlet 5017 | -9/Exiles | Discovered exit to Mines (range 11) 5031 | -9/Exiles | Left Exiles lab with Superbattery 5031 | -9/Exiles | Entered Mines 5240 | -8/Mines | Discovered new exit (range 5) 5248 | -8/Mines | Entered Materials 5248 | -8/Materials | Evolved 2 slots: Propulsion x1, Utility x1 5584 | -8/Materials | Discovered new exit (range 9) 5741 | -8/Materials | Entered Factory 5741 | -7/Factory | Evolved 2 slots: Utility x2 6029 | -7/Factory | Build established: Hacker-Sprinter 6288 | -7/Factory | Fabricated Imp. Signal Interpreter (x2) 6398 | -7/Factory | Discovered new exit (range 3) 6400 | -7/Factory | Identified exit to Lower Caves 6555 | -7/Factory | Discovered new exit (range 17) 6629 | -7/Factory | Manually triggered Chute Trap 6629 | -7/Factory | Sucked down chute 6629 | -7/Factory | Entered Waste 6632 | -7/Waste | Spotted C-40 Crusher 6633 | -7/Waste | Spotted C-40 Crusher 6639 | -7/Waste | Spotted C-40 Crusher 6640 | -7/Waste | Discovered new exit (range 20) 6641 | -7/Waste | Spotted C-40 Crusher 6641 | -7/Waste | Spotted C-40 Crusher 6644 | -7/Waste | EMP discharged 6644 | -7/Waste | System corruption reached 10% 6645 | -7/Waste | Identified exit to Factory 6645 | -7/Waste | Entered Factory 6987 | -7/Factory | Repaired Broken Imp. Cesium-ion Thruster 7120 | -7/Factory | Repaired Lgt. Angular Momentum Engine 7269 | -7/Factory | Entered Lower Caves 7466 | -7/Lower Caves | Discovered new exit (range 13) 7471 | -7/Lower Caves | Learned Factory emergency access door positions 7513 | -7/Lower Caves | Identified exit to Lower Caves 7518 | -7/Lower Caves | Entered another Lower Caves area 7800 | -7/Lower Caves | Encountered a Warlord checkpoint 7867 | -7/Lower Caves | Discovered new exit (range 7) 7869 | -7/Lower Caves | Identified exit to Zion 7883 | -7/Lower Caves | Learned location of 1 exit from Proximity Caves 7905 | -7/Lower Caves | Entered Zion 7917 | -7/Zion | Received a visual enhancement algorithm 7919 | -7/Zion | Discovered new exit (range 9) 7938 | -7/Zion | System corruption cleaned by Quarantine Array 7947 | -7/Zion | Learned location of Warlord (-5) 7956 | -7/Zion | Learned 12 Factory zone layouts 7999 | -7/Zion | Found CR-A16's Pointy Stick 8008 | -7/Zion | Learned location of Extension (-5) 8033 | -7/Zion | Rebuked by Imprinter 8117 | -7/Zion | Visited the Megawrench Repair Shop 8117 | -7/Zion | Megawrench repaired 7 parts 8153 | -7/Zion | Identified exit to Proximity Caves 8153 | -7/Zion | Entered Proximity Caves 8154 | -6/Proximity Caves | Identified exit to Factory 8298 | -6/Proximity Caves | Learned 8 Factory zone layouts 8322 | -6/Proximity Caves | Entered Factory 8322 | -6/Factory | Evolved 2 slots: Utility x2 8323 | -6/Factory | Identified exit to Factory 8426 | -6/Factory | Central database locked down 8521 | -6/Factory | Discovered exit to Factory (range 16) 8526 | -6/Factory | Identified exit to Lower Caves 8681 | -6/Factory | Fabricated Adv. Signal Interpreter (x2) 9159 | -6/Factory | Cargo convoy interrupted 9251 | -6/Factory | Manually triggered Chute Trap 9251 | -6/Factory | Sucked down chute 9251 | -6/Factory | Entered Waste 9261 | -6/Waste | Spotted C-40 Crusher 9264 | -6/Waste | Spotted C-40 Crusher 9265 | -6/Waste | Spotted C-40 Crusher 9266 | -6/Waste | EMP discharged 9267 | -6/Waste | Spotted C-40 Crusher 9267 | -6/Waste | Spotted C-40 Crusher 9272 | -6/Waste | Discovered new exit (range 16) 9273 | -6/Waste | Spotted C-40 Crusher 9276 | -6/Waste | Identified exit to Factory 9276 | -6/Waste | Entered Factory 9426 | -6/Factory | Repaired Broken Plasma Lance 9519 | -6/Factory | Discovered exit to Factory (range 9) 9616 | -6/Factory | Discovered exit to Lower Caves (range 14) 9646 | -6/Factory | Fabricated Cld. Cesium-ion Thruster? 9666 | -6/Factory | Fabricated Cld. Cesium-ion Thruster? 9849 | -6/Factory | Discovered exit to Factory (range 14) 10025 | -6/Factory | Fabricated Plasma Lance? 10254 | -6/Factory | Entered Lower Caves 10432 | -6/Lower Caves | Discovered new exit (range 14) 10435 | -6/Lower Caves | Encountered a Warlord checkpoint 10461 | -6/Lower Caves | Learned Factory terminal intel 10504 | -6/Lower Caves | Identified exit to Lower Caves 10504 | -6/Lower Caves | Entered another Lower Caves area 10542 | -6/Lower Caves | Learned location of 1 exit from Factory 10576 | -6/Lower Caves | A Commander dispatched an escort 10578 | -6/Lower Caves | Discovered exit to Factory (range 10) 10602 | -6/Lower Caves | Learned location of 1 exit from Factory 10646 | -6/Lower Caves | Encountered a Warlord checkpoint 11012 | -6/Lower Caves | Discovered new exit (range 5) 11013 | -6/Lower Caves | Identified exit to Data Miner 11146 | -6/Lower Caves | Entered Data Miner 11146 | -6/Data Miner | Accompanied by 2 allies 11146 | -6/Data Miner | Discovered new exit (range 6) 11147 | -6/Data Miner | Commander's escort returned to base 11147 | -6/Data Miner | Commander's escort returned to base 11151 | -6/Data Miner | Met Data Miner 11156 | -6/Data Miner | Learned location of Section 7 (-2) 11156 | -6/Data Miner | Acquired the access code to Warlord's prototype stash 11160 | -6/Data Miner | Received God Mode back door access code from Data Miner 11170 | -6/Data Miner | Destroyed Data Miner 11176 | -6/Data Miner | Found Deep Network Scanner 11177 | -6/Data Miner | Found Ghost Barrier 11178 | -6/Data Miner | Found System Mapper 11181 | -6/Data Miner | Data Conduit disabled 11207 | -6/Data Miner | Identified exit to Proximity Caves 11207 | -6/Data Miner | Entered Proximity Caves 11231 | -5/Proximity Caves | Spotted B-75 Beast 11314 | -5/Proximity Caves | Learned 8 Factory zone layouts 11317 | -5/Proximity Caves | Learned Factory emergency access door positions 11330 | -5/Proximity Caves | Discovered exit to Factory (range 5) 11415 | -5/Proximity Caves | Entered Factory 11415 | -5/Factory | Evolved 2 slots: Propulsion x1, Utility x1 11416 | -5/Factory | Identified exit to Factory 11416 | -5/Factory | Identified exit to Upper Caves 11419 | -5/Factory | Loaded intel: 22 terminal locations 11639 | -5/Factory | Discovered exit to Factory (range 15) 11720 | -5/Factory | Build established: Wizard-Scout 11791 | -5/Factory | Fabricated Exp. Cesium-ion Thruster? 11803 | -5/Factory | Fabricated Lgt. Regenerative Plating (x1) 11962 | -5/Factory | Fabricated Mni. Fusion Reactor (x1) 12018 | -5/Factory | Fabricated Exp. Cesium-ion Thruster (x1) 12021 | -5/Factory | Local fabrication network quarantined 12107 | -5/Factory | Build established: Wizard-Sprinter 12207 | -5/Factory | Discovered new exit (range 11) 12432 | -5/Factory | Discovered exit to Upper Caves (range 5) 12576 | -5/Factory | Sucked down chute 12576 | -5/Factory | Entered Waste 12577 | -5/Waste | Joined by Warlord forces that had cleared the area 12590 | -5/Waste | Found Unknown Device 12590 | -5/Waste | Identified Adv. Force Booster 12609 | -5/Waste | Discovered new exit (range 16) 12614 | -5/Waste | Found Prototype Device 12614 | -5/Waste | Identified EM Disruption Field 12674 | -5/Waste | Identified exit to Factory 12674 | -5/Waste | Entered Factory 12687 | -5/Factory | Identified exit to Extension 12887 | -5/Factory | Fabricated Exp. Cesium-ion Thruster? 13141 | -5/Factory | Discovered exit to Factory (range 5) 13520 | -5/Factory | Discovered exit to Factory (range 16) 13826 | -5/Factory | Repaired Exp. Cesium-ion Thruster 14008 | -5/Factory | Entered Extension 14015 | -5/Extension | Rescued a captive Derelict 14131 | -5/Extension | Energy Cycler disabled 14131 | -5/Extension | Rescued a captive Derelict 14131 | -5/Extension | Rescued a captive Derelict 14131 | -5/Extension | Rescued a captive Derelict 14131 | -5/Extension | Rescued a captive Derelict 14131 | -5/Extension | Rescued a captive Derelict 14131 | -5/Extension | Rescued a captive Derelict 14132 | -5/Extension | Rescued a captive Derelict 14132 | -5/Extension | Rescued a captive Derelict 14133 | -5/Extension | Rescued a captive Derelict 14134 | -5/Extension | Rescued a captive Derelict 14134 | -5/Extension | Rescued a captive Derelict 14135 | -5/Extension | Rescued a captive Derelict 14136 | -5/Extension | Rescued a captive Derelict 14144 | -5/Extension | Rescued a captive Derelict 14152 | -5/Extension | Rescued a captive Derelict 14171 | -5/Extension | Spotted B-75 Beast 14172 | -5/Extension | Discovered exit to Factory (range 19) 14172 | -5/Extension | Spotted B-75 Beast 14210 | -5/Extension | Rescued A7 14233 | -5/Extension | Identified exit to Cetus 14716 | -5/Extension | Discovered exit to Factory (range 10) 14733 | -5/Extension | Entered Cetus 14733 | -5/Cetus | Accompanied by 8 allies (A7) 14738 | -5/Cetus | Acquired a Cetus Manufacturing Module code from A7 14749 | -5/Cetus | Spotted Cetus Guard 14749 | -5/Cetus | Spotted Cetus Guard 14750 | -5/Cetus | Spotted Cetus Guard 14758 | -5/Cetus | Allies destroyed Cetus Guard 14758 | -5/Cetus | Spotted Cetus Guard 14769 | -5/Cetus | Allies destroyed Cetus Guard 14771 | -5/Cetus | Allies destroyed Cetus Guard 14776 | -5/Cetus | Destroyed Cetus Guard 14780 | -5/Cetus | Extracted ID and sensor layout for unrecognized location from A7's data core 14811 | -5/Cetus | Discovered exit to Factory (range 21) 14910 | -5/Cetus | Discovered new exit (range 22) 14983 | -5/Cetus | Found a strange terminal 14984 | -5/Cetus | Started Cetus Manufacturing Module 15009 | -5/Cetus | Manufactured an Enhanced Grunt 15034 | -5/Cetus | Manufactured an Enhanced Grunt 15059 | -5/Cetus | Manufactured an Enhanced Grunt 15061 | -5/Cetus | Entered Factory 15061 | -4/Factory | Evolved 2 slots: Propulsion x1, Utility x1 15136 | -4/Factory | Spotted B-86 Titan 15270 | -4/Factory | Identified exit to Upper Caves 15270 | -4/Factory | Identified exit to Armory 15289 | -4/Factory | Discovered new exit (range 14) 15357 | -4/Factory | Sucked down chute 15357 | -4/Factory | Entered Waste 15359 | -4/Waste | Spotted C-40 Crusher 15365 | -4/Waste | Spotted C-40 Crusher 15366 | -4/Waste | Spotted C-40 Crusher 15366 | -4/Waste | Spotted C-40 Crusher 15366 | -4/Waste | Discovered new exit (range 16) 15369 | -4/Waste | Spotted C-40 Crusher 15400 | -4/Waste | Spotted C-40 Crusher 15447 | -4/Waste | Warlord forces began an assault 15460 | -4/Waste | Identified exit to Factory 15470 | -4/Waste | Allies destroyed C-40 Crusher 15474 | -4/Waste | Allies destroyed C-40 Crusher 15480 | -4/Waste | Allies destroyed C-40 Crusher 15491 | -4/Waste | Allies destroyed C-40 Crusher 15509 | -4/Waste | Allies destroyed C-40 Crusher 15529 | -4/Waste | Entered Factory 15577 | -4/Factory | Fabricated Exp. Melee Analysis Suite (x1) 15630 | -4/Factory | Fabricated Exp. Melee Analysis Suite (x1) 15690 | -4/Factory | Fabricated Adv. Actuator Array (x1) 15814 | -4/Factory | Repaired Exp. Cesium-ion Thruster? 15957 | -4/Factory | Repaired Adv. Phase Shifter? 15995 | -4/Factory | Repaired Exp. Cesium-ion Thruster 16035 | -4/Factory | Local fabrication network quarantined 16039 | -4/Factory | Repaired Cld. Cesium-ion Thruster 16323 | -4/Factory | Spotted Executioner 16324 | -4/Factory | Cargo convoy interrupted 16324 | -4/Factory | Entered Armory 16363 | -4/Armory | Identified exit to Research 16497 | -4/Armory | Repaired Nuclear Pulse Array 16721 | -4/Armory | Fabricated Nanosword? 16778 | -4/Armory | Fabricated Nanosword (x1) 16785 | -4/Armory | Fabricated Nanosword (x1) 16838 | -4/Armory | Fabricated Nanosword (x1) 16905 | -4/Armory | Assisted by bots powering up and referring to "LRC-V3" 16989 | -4/Armory | Fabricated Exp. Propulsion Shielding (x1) 17016 | -4/Armory | Fabricated Adv. Reaction Control System? 17068 | -4/Armory | Fabricated Exp. Utility Shielding (x1) 17173 | -4/Armory | Fabricated Exp. Weapon Shielding (x1) 17259 | -4/Armory | Discovered new exit (range 3) 17271 | -4/Armory | Identified exit to Lab 17305 | -4/Armory | Repaired Exp. Cesium-ion Thruster 17348 | -4/Armory | Entered Lab 17348 | -4/Lab | Accompanied by 5 allies 17348 | -4/Lab | 1 ally did not survive the journey 17348 | -4/Lab | Discovered exit to Research (range 9) 17351 | -4/Lab | Hidden lab's door opened automatically 17351 | -4/Lab | Sensor layout match revealed 17351 | -4/Lab | Unable to decrypt terminal 17352 | -4/Lab | Gained access to the hidden lab's interior 17447 | -4/Lab | Found Alien Artifact 17447 | -4/Lab | Identified Core Expander 17447 | -4/Lab | Installed Core Expander, added new Power slot 17456 | -4/Lab | Found Alien Artifact 17456 | -4/Lab | Identified Integrated Reactor 17456 | -4/Lab | Installed Integrated Reactor, increased core energy generation (+10) 17464 | -4/Lab | Found Deep Network Scanner 17471 | -4/Lab | Unable to decrypt terminal 17562 | -4/Lab | Found Prototype Device 17562 | -4/Lab | Identified AEGIS Remote Shield 17588 | -4/Lab | Unable to decrypt terminal 17597 | -4/Lab | Entered Research 17597 | -3/Research | Accompanied by 4 allies 17597 | -3/Research | Evolved 2 slots: Utility x2 17676 | -3/Research | Spotted B-86 Titan 17707 | -3/Research | Discovered new exit (range 12) 17723 | -3/Research | Identified exit to Testing 17726 | -3/Research | Spotted B-86 Titan 17763 | -3/Research | Spotted B-86 Titan 17795 | -3/Research | Identified exit to Research 17945 | -3/Research | Entered another Research area 17945 | -2/Research | Evolved 2 slots: Utility x1, Weapon x1 18014 | -2/Research | Repaired Mni. Fusion Reactor 18046 | -2/Research | Repaired Exp. Cesium-ion Thruster 18079 | -2/Research | Found Unknown Device 18085 | -2/Research | Identified Quantum Capacitor 18260 | -2/Research | Spotted B-90 Cyclops 18294 | -2/Research | Discovered new exit (range 4) 18295 | -2/Research | Identified exit to Access 18295 | -2/Research | Entered Access 18295 | -1/Access | Evolved 2 slots: Utility x1, Weapon x1 18460 | -1/Access | Identified exit to Command 18761 | -1/Access | Fabricated Femtoactuators? 18783 | -1/Access | Local fabrication network quarantined 18844 | -1/Access | Entered Command 18847 | -1/Command | Spotted B-99 Colossus 18986 | -1/Command | Spotted M Guard 18986 | -1/Command | Spotted M Guard 18986 | -1/Command | Spotted Combat Programmer 18986 | -1/Command | Spotted Combat Programmer 18996 | -1/Command | Met MAIN.C 18997 | -1/Command | 0b10 Conduit disabled 19012 | -1/Command | System corruption reached 10% 19016 | -1/Command | Core integrity fell below 50% 19021 | -1/Command | Core integrity fell below 20% 19024 | -1/Command | Destroyed by S-43 Plague with Heavy Machine Gun Last Messages --------------- 19011_ Nanosword destroyed. 19011_ Exp. Cesium-ion Thruster destroyed. 19011_ Nanosword follow-up attack on MAIN.C. 19011_ Penetrated by EMDS Slug. 19012_ Adv. Core Analyzer destroyed. 19013_ Penetrated by EMDS Slug. 19016_ Nanosword follow-up attack on MAIN.C. 19017_ System corrupted: Matter fused (-6). 19017_ Penetrated by EMDS Slug. 19019_ Nanosword follow-up attack on MAIN.C. 19019_ Superbattery destroyed. 19020_ Penetrated by EMDS Slug. 19020_ Nanosword destroyed. 19022_ Penetrated by EMDS Slug. 19023_ Deep Network Scanner destroyed. 19023_ Nanosword destroyed. 19023_ Deep Network Scanner destroyed. 19023_ P-80 Master resets Combat Programmer, system corruption cleaned. 19024_ EMDS Slug penetrates S-43 Plague. 19024_ S-43 Plague destroyed. Map ----- +----------------------------------------------------+ | ?????????????????????????????????????????????????? | | ?????????????????????????????????????????????????? | | ?????????????????????????????????????????????????? | | ?????????????????????????????????????????????????? | | ?????????????????????????????????????????????????? | | ?????????????????????????????????????????????????? | | ?????????????????????????????????????????????????? | | ?????????????????????????????????????????????????? | | ?????????????????????????????????????????????????? | | ?????????????????????????????????????????????????? | | ?????????????????????????????????????????????????? | | ?????????????????????????????????????????????????? | | ?????????????????????????????????????????????????? | | ????????????????????????#?#############??????????? | | ??????????????????""""?? """" #??????????? | | ????????????????#"" ?? "" #??????????? | | ????????????????#""""" "" ############ | | ????????????????#""""""""""" / | | ????????????????#" " """ + | | ????????????????#"" """""" + Y | | ????????????????#"" """""" ############ | | ???????????p????# " """ "" #??????????? | | ????????????????# " #??????????? | | ????????????????# " pMMM #??????????? | | ????????????????#""" "s%sMMM """""""#??????????? | | ???????????p????#"" s @MMM"""""""""#??????????? | | ????????????????# p """""""""""#??????????? | | ????????????????# sp " " " " #??????????? | | ????????????????# " " " #??????????? | | ????????????????" " " """" " #??????????? | | ????????????????" """ " " """"????????????? | | ????????????????" " " " ???????????????? | | ????????????????# """""""""" ????????????????? | | ????????????????# " """ " """????????????????? | | ????????????????# """ " " ?????????????????? | | ????????????????########?###??#??????????????????? | | ?????????????????????????????????????????????????? | | ?????????????????????????????????????????????????? | | ?????????????????????????????????????????????????? | | ?????????????????????????????????????????????????? | | ?????????????????????????????????????????????????? | | ?????????????????????????????????????????????????? | | ?????????????????????????????????????????????????? | | ?????????????????????????????????????????????????? | | ?????????????????????????????????????????????????? | | ?????????????????????????????????????????????????? | | ?????????????????????????????????????????????????? | | ?????????????????????????????????????????????????? | | ?????????????????????????????????????????????????? | | ?????????????????????????????????????????????????? | +----------------------------------------------------+ Best States ------------- Heat Dissipation 78 Energy Generation 37 Energy Capacity 1630 Matter Stores 300 Matter Capacity 300 Sight Range 22 Robot Scan Range 16 Terrain Scan Density 10 Armor Coverage 450 Propulsion Shielding 90 Utility Shielding 90 Weapon Shielding 90 Melee Speed Boost 50 Evasion (%) 66 Melee Accuracy 24 Target Analysis 8 Core Analysis 10 Offensive Hacking 71 Defensive Hacking 34 Item Schematics ----------------- Katana | -9/Materials | Scanalyzed Imp. Sensor Array | -7/Factory | Hacked Imp. Signal Interpreter | -7/Factory | Hacked Imp. Cesium-ion Thruster | -7/Factory | Scanalyzed Enh. Optical Array | -7/Factory | Hacked Hacking Suite | -7/Factory | Hacked Riot Gun | -7/Zion | Free Hvy. Riot Gun | -7/Zion | Free Barrage Gun | -7/Zion | Free Hvy. Battle Rifle | -7/Zion | Free Battle Cannon | -7/Zion | Free Phasing Sabre | -7/Zion | Free Adv. Signal Interpreter | -6/Factory | Hacked Adv. Melee Analysis Suite | -6/Factory | Hacked Nuclear Pulse Array | -6/Factory | Hacked Impulse Thruster | -6/Factory | Hacked Lgt. Antimatter Reactor | -6/Factory | Hacked Lyr. Heavy Armor Plating | -6/Factory | Hacked Adv. Transmission Jammer | -6/Factory | Hacked Mak. Power Source | -6/Factory | Scanalyzed Plasma Lance | -6/Factory | Scanalyzed Cld. Cesium-ion Thruster | -6/Factory | Hacked Adv. Actuator Array | -6/Factory | Hacked Mic. Fission Core | -6/Factory | Hacked Lrn. Missile Launcher | -6/Factory | Hacked Cld. Field Propulsion Drive | -6/Factory | Hacked Combat Drone Bay | -6/Data Miner | Free Lgt. Regenerative Plating | -6/Data Miner | Free Exp. Flexi-carbon Leg | -6/Data Miner | Free Tactical Coordination Suite | -6/Data Miner | Free Mni. Smartbomb Launcher | -6/Data Miner | Free Plasma Sword | -6/Data Miner | Free Kinetic Spear | -6/Data Miner | Free Exp. Cesium-ion Thruster | -5/Factory | Hacked Mni. Fusion Reactor | -5/Factory | Hacked Imp. Heavy Treads | -5/Factory | Hacked Exp. Propulsion Shielding | -5/Factory | Hacked Exp. Utility Shielding | -5/Factory | Hacked Exp. Weapon Shielding | -5/Factory | Hacked Imp. Remote Shield | -5/Factory | Hacked Adv. Heavy Treads | -5/Factory | Hacked Antimatter Reactor | -5/Factory | Hacked Phase Gun | -5/Factory | Hacked Hvy. Disruptor Cannon | -5/Factory | Hacked Field Propulsion Array | -5/Factory | Hacked Imp. Coolant Injector | -5/Factory | Hacked Neutrino Core | -5/Factory | Hacked Med. Storage Unit | -5/Factory | Hacked Adv. Hacking Suite | -5/Factory | Scanalyzed Adv. Trap Scanner | -5/Factory | Hacked Adv. Micro-nuke Launcher | -5/Factory | Hacked Adv. Coolant Injector | -5/Factory | Hacked Hvy. Siege Treads | -5/Factory | Hacked Adv. Plasma Cannon | -5/Factory | Hacked Imp. Heavy Siege Treads | -5/Factory | Hacked Adv. Core Analyzer | -5/Extension | Hacked Linear Accelerator | -4/Factory | Hacked Nanoactuators | -4/Factory | Hacked Nova Cannon | -4/Factory | Hacked Adv. Heavy Siege Treads | -4/Factory | Hacked Imp. Component Analysis Suite | -4/Factory | Scanalyzed Exp. Melee Analysis Suite | -4/Factory | Hacked Hardcell Cannon | -4/Factory | Hacked Adv. Reaction Control System | -4/Factory | Hacked Adv. Datajack | -4/Factory | Hacked Vibroblade | -4/Factory | Hacked Nanosword | -4/Factory | Hacked Enh. Quantum Rifle | -4/Factory | Hacked Adv. Cryofiber Web | -4/Factory | Hacked Enh. Nova Cannon | -4/Factory | Hacked Myomer Leg | -4/Factory | Hacked Hyp. Railgun | -4/Factory | Hacked Stasis Beam | -4/Factory | Hacked Imp. Stasis Canceller | -4/Armory | Hacked Adv. Component Analysis Suite | -4/Armory | Hacked Biometal Heavy Treads | -4/Armory | Hacked Reaction Control System | -4/Armory | Hacked Q-thruster | -4/Armory | Hacked Hvy. Gauss Cannon | -4/Armory | Hacked Lgt. Quantum Reactor | -4/Armory | Hacked Exp. Actuator Array | -1/Access | Hacked Femtoactuators | -1/Access | Hacked Robot Schematics ------------------ T-07 Excavator | -7/Factory | Hacked S-27 Virus | -6/Factory | Hacked G-50 Soldier | -6/Data Miner | Free G-67 Veteran | -6/Data Miner | Free L-41 Fighter | -6/Data Miner | Free H-66 Slayer | -6/Data Miner | Free P-70 Sage | -6/Data Miner | Free I-36 Angel | -6/Data Miner | Free A-02 Transporter | -5/Factory | Hacked B-60 Warrior | -5/Extension | Hacked B-48 Gladiator | -5/Extension | Hacked L-61 Swordsman | -4/Armory | Hacked A-15 Conveyor | -1/Command | Hacked Fabricated ------------ Imp. Signal Interpreter | x2 | -7/Factory Adv. Signal Interpreter | x2 | -6/Factory Cld. Cesium-ion Thruster | x1 | -6/Factory Cld. Cesium-ion Thruster | x1 | -6/Factory Plasma Lance | x1 | -6/Factory Exp. Cesium-ion Thruster | x1 | -5/Factory Lgt. Regenerative Plating | x1 | -5/Factory Mni. Fusion Reactor | x1 | -5/Factory Exp. Cesium-ion Thruster | x1 | -5/Factory Exp. Cesium-ion Thruster | x1 | -5/Factory Exp. Melee Analysis Suite | x1 | -4/Factory Exp. Melee Analysis Suite | x1 | -4/Factory Adv. Actuator Array | x1 | -4/Factory Nanosword | x1 | -4/Armory Nanosword | x1 | -4/Armory Nanosword | x1 | -4/Armory Nanosword | x1 | -4/Armory Exp. Propulsion Shielding | x1 | -4/Armory Adv. Reaction Control System | x1 | -4/Armory Exp. Utility Shielding | x1 | -4/Armory Exp. Weapon Shielding | x1 | -4/Armory Femtoactuators | x1 | -1/Access Alien Tech Used ----------------- Core Expander Integrated Reactor Achievements -------------- None Challenges ------------ None Game ------ Seed ArcIntegrityManipulator Manual? 0 Play Time 06:02:33 Cumulative 828.7 hours Start 2021.07.31 @ 16:23:22 End 2021.08.09 @ 15:30:12 Sessions 7 Manual Loads 0 Difficulty Rogue Special Mode None Game No. 437 Rogue 437 Adventurer 0 Explorer 0 Win Type - Total 65 Types 36/5/13/6/1/1/3/0/0 Lore% 89 Gallery% 88 Achievement% 76 Wizard Run 0 Options --------- ASCII 0 Keyboard 0 Movement Mouse Keybinds 0 Fullscreen 0 Font 32/Smallcaps Map View 76x50 Tactical HUD 1 Map Filters NONE Filters NONE Steam 0 RUN: aad3bc19-251c-4817-8ef9-7437642b7917